Workbook

Sheet Instructions
B2: Guide for Assessing Community Emergency Response Needs and Capabilities for Hazardous Materials Releases: Worksheets
B4: This file is designed to follow the 20 steps outlined in the “Guide for Assessing Community Emergency Response Needs and Capabilities for Hazardous Materials Releases. "
B6: Separate tabs have been developed for the major steps and cell equations perform most of the calculations.
B7: Steps 1 and 2 help the assessor determine the current Tier level of their Emergency Response organization. The Tier level is aligned with the FEMA resource types.
B8: Steps 3 though 6 assist the assessor in selecting the proper Jurisdictional Class. The Jurisdictional Class as used here and adaption of the DHS Jurisdictional Class definitions. The Jurisdictional Class selected determines a minimum Tier level response and if the current Tier Level capability is lower than required, this is the first gap identified in this assessment. The assumption is made that this gap would be addressed before proceeding with the balance of the assessment. It should be noted that while the balance of the assessment could be completed with a lower-than-needed Tier level, many more gaps will be identified.
B9: Steps 7 through 9 are focused on capturing the hazardous materials present in the jurisdiction for which response may be necessary; these are used to complete the table entries for Step 10 and those following.
B10: For tabs beginning with Step 10, and continuing to Step 20, the focus is to evaluate the risk equation, as defined in Section I.D, for each accident scenario being assessed in the local or regional planning area. In the example there are 4 facility accident scenarios and 15 transport accident scenarios. They have been linked so that if the scenario is changed in Step 10, all the other tabs are automatically updated.
B12: The cells where information needs to be inserted are shaded in light blue. Once all the entries have been made for each step, the worksheet will automatically evaluate the risk equation.
B14: In order to use these worksheets most effectively, the user should save the example under a different name , open the newly named file and adjust the scenarios so they are applicable to the local area or region.
B15: If more scenarios are required, they can be inserted by right clicking on a row number (the number that begins each row), moving the cursor down to “insert” and then clicking again. The cell formulas from the row above blank row must then be cut and pasted into the new row. This process needs to be continued for each tab that contains a scenario, always making sure all the cell formulas are copied down into the new row.
B16: For worksheets beginning with 'Steps 10 - 12 Pop Conseq', extra scenario lines with the formulas included have been included after the last facility scenario and last route scenario. A user could either change the scenarios shown or add additional scenarios by inserting additional lines and copying the lines with the formula to the newly inserted lines. It is suggested that the user keep this file as a master, save it to a new file name and then modify the new file.
B18: For worksheets beginning with 'Steps 10 - 12 Pop Conseq', those cells shaded in light blue must be entered by the user,
B19: all others will either be copied from previous sheets or calculated when the information is entered into the shaded cells

Sheet Step 1 and 2
B2: The purpose of this tab is to determine the Capability Tier level for your local or regional emergency response organization. The assessment is made by answering the applicable questions for each Resource Type Capability as either Y or N and then looking at the bottom of he table to see the capability level where all the requirements have been met. The data entries are shaded in light blue. To meet the baseline requirements, 27 yes answers should appear in the proper rows. You can see the rows by looking at the entries with 1 under the Base column.
B9: There are some entries like Decontamination and Sustainability where the "Y" entry is made for the row that most describes your capability. Thus, if you are currently capable of decontaminating 500 patients per hour, it follows that you can satisfy the requirements to decontaminate 100 patients per hour. Thus, there is no need to put a "Y" entry for the 100 and 250 patient per hour rows; they will be automatically satisfied when you place a "Y" under 500 patients per hour. Note that if you fill out the form inconsistently, saying "N" to 100 patients per hour and "Y" to 500 patients per hour, the "N" overrides the "Y" and you get an incorrect total.
B17: You have to fill out the Tier Level on row 85 that best meets your current capability.
B18: Capability1 Tier | C18: Capability Level | D18: Base | E18: 1 | F18: 2 | G18: 3 | H18: 4
B19: FEMA Resource Type (Equivalent) | D19: N/A | E19: N/A | F19: III | G19: II | H19: I
A20: Highest Team Certification2 | C20: Y/N | D20: Ops | E20: Ops/ Tech | F20: Tech | G20: Tech | H20: Tech
A21: (Operations or Technician) | C21: Assessor Determined
A22: Field Testing3
B23: Presumptive Identification – Chemical | C23: Y | E23: =+IF($C23="Y",1,0) -> 1 | F23: 1 | G23: 1 | H23: 1
B24: Presumptive Identification – Radiological | C24: Y | E24: 1 | F24: 1 | G24: 1 | H24: 1
B25: Presumptive Identification – Biological | C25: N | G25: 0 | H25: 0
B26: Presumptive Identification – Spec. Chemicals6 | C26: N | H26: =+IF($C26="Y",1,0) -> 0
A27: Air Monitoring3
B28: Atmospheric Monitoring – Oxygen | C28: Y | D28: =+IF($C28="Y",1,0) -> 1 | E28: =+IF($C28="Y",1,0) -> 1 | F28: 1 | G28: 1 | H28: 1
B29: Atmospheric Monitoring – Explosive Gas | C29: Y | D29: =+IF($C29="Y",1,0) -> 1 | E29: 1 | F29: 1 | G29: 1 | H29: 1
B30: Atmospheric Monitoring – CO | C30: Y | D30: =+IF($C30="Y",1,0) -> 1 | E30: 1 | F30: 1 | G30: 1 | H30: 1
B31: Atmospheric Monitoring – H2S | C31: Y | D31: =+IF($C31="Y",1,0) -> 1 | E31: 1 | F31: 1 | G31: 1 | H31: 1
B32: Atmospheric Monitoring – Flammable Diff. 7 | C32: Y | F32: 1 | G32: 1 | H32: 1
B33: Atmospheric Monitoring – Identify TIC8 | C33: N | G33: 0 | H33: 0
B34: Atmospheric Monitoring – Identify Conc.9 | C34: N | H34: =+IF($C34="Y",1,0) -> 0
A35: Sampling3
B36: Sampling – Solid | C36: Y | E36: =+IF($C36="Y",1,0) -> 1 | F36: =+IF($C36="Y",1,0) -> 1 | G36: =+IF($C36="Y",1,0) -> 1 | H36: =+IF($C36="Y",1,0) -> 1
B37: Sampling – Liquid | C37: N | F37: O | G37: =+IF($C37="Y",1,0) -> 0 | H37: =+IF($C37="Y",1,0) -> 0
B38: Sampling – Air/Vapor | C38: N | F38: O | G38: O | H38: =+IF($C38="Y",1,0) -> 0
A39: Radiation Monitoring3
B40: Survey – Gamma | C40: Y | E40: =+IF($C40="Y",1,0) -> 1 | F40: =+IF($C40="Y",1,0) -> 1 | G40: =+IF($C40="Y",1,0) -> 1 | H40: =+IF($C40="Y",1,0) -> 1
B41: Survey – Gamma + Beta | C41: N | G41: =+IF($C41="Y",1,0) -> 0 | H41: =+IF($C41="Y",1,0) -> 0
B42: Survey – Gamma, Beta, & Alpha | C42: N | H42: =+IF($C42="Y",1,0) -> 0
B43: Personal Dosimeters10 | C43: Y | F43: =+IF($C43="Y",1,0) -> 1 | G43: =+IF($C43="Y",1,0) -> 1 | H43: =+IF($C43="Y",1,0) -> 1
A44: Protective Ensembles3
B45: Liquid Splash-Protective CPC11 | C45: Y | D45: =+IF($C45="Y",1,0) -> 1 | E45: =+IF($C45="Y",1,0) -> 1 | F45: =+IF($C45="Y",1,0) -> 1 | G45: =+IF($C45="Y",1,0) -> 1 | H45: =+IF($C45="Y",1,0) -> 1
B46: Vapor-Protective CPC12 | C46: Y | G46: =+IF($C46="Y",1,0) -> 1 | H46: 1
B47: Flash Fire Vapor-Protective CPC13 | C47: Y | H47: =+IF($C47="Y",1,0) -> 1
B48: Level C PPE14 | C48: Y | D48: =+IF($C48="Y",1,0) -> 1 | E48: =+IF($C48="Y",1,0) -> 1 | F48: 1 | G48: 1 | H48: 1
B49: Level B PPE14 | C49: Y | F49: X | G49: X | H49: X
B50: Level A PPE14 | C50: Y | F50: X | G50: X | H50: X
A51: Technical Reference3
B52: Printed & Electronic | C52: Y | D52: =+IF($C52="Y",1,0) -> 1 | E52: 1 | F52: 1 | G52: 1 | H52: 1
B53: Dispersion Modeling with Map Overlays | C53: Y | F53: 1 | G53: 1 | H53: 1
A54: Special Capabilities3
B55: Specialized Equipment based upon Local Risk | C55: Y | F55: =+IF($C55="Y",1,0) -> 1 | G55: 1 | H55: 1
B56: Heat Sensing Capability | C56: Y | G56: 1 | H56: 1
B57: Light Amplification Capability | C57: Y | G57: 1 | H57: 1
B58: Digital Imaging Documentation Capability | C58: Y | H58: =+IF($C58="Y",1,0) -> 1
A59: Intervention3
B60: Dike, Dam, & Absorption Capability | C60: Y | D60: =+IF($C60="Y",1,0) -> 1 | E60: 1 | F60: 1 | G60: 1 | H60: 1
B61: Liquid Leak Intervention | C61: N | G61: 0 | H61: 0
B62: Neutralize, Plug, & Patch Capability | C62: N | G62: 0 | H62: 0
B63: Vapor Leak Intervention | C63: N | G63: 0 | H63: 0
B64: Advanced Intervention Capabilities15 | C64: N | H64: =+IF($C64="Y",1,0) -> 0
A65: Decontamination3
B66: Team Decontamination – Known | C66: Y | D66: =+IF($C66="Y",1,0) -> 1 | E66: 1 | F66: 1 | G66: 1 | H66: 1
B67: Team Decontamination – Known & Unknown | C67: N | G67: 0 | H67: 0
B68: Team Decontamination – Advanced | C68: N | H68: =+IF($C68="Y",1,0) -> 0
B69: Casualty Decontamination (100 patients/hr) | C69: Y | F69: =+IF($C69="Y",1,0) -> 1 | G69: 1 | H69: 1 | I69: =IF(AND(C69<>"",OR(C70="Y",C71="Y")),"Do not enter a value on this line if you entered a 'Y' below.","") -> 
B70: Casualty Decontamination (250 patients/hr) | G70: 0 | H70: 0 | I70: =IF(AND(C70<>"",C71="Y"),"Do not enter a value on this line if you entered a 'Y' below.","") -> 
B71: Casualty Decontamination (500+ patients/hr) | G71: 0 | H71: =+IF($C71="Y",1,0) -> 0
A72: Communications3
B73: In-Suit, Wireless Voice | C73: Y | D73: =+IF($C73="Y",1,0) -> 1 | E73: 1 | F73: 1 | G73: 1 | H73: 1
B74: Wireless Data | C74: Y | G74: 1 | H74: 1
B75: Secure Wireless Voice | C75: N | H75: =+IF($C75="Y",1,0) -> 0
A76: Staffing4
B77: Hazmat Incident Commander | C77: Y | D77: =+IF($C77="Y",1,0) -> 1 | E77: 1 | F77: 1 | G77: 1 | H77: 1
B78: Hazmat Safety Officer | C78: Y | D78: 1 | E78: 1 | F78: 1 | G78: 1 | H78: 1
B79: Technician Level Capability | C79: Y | D79: =+IF($C79="Y",1,0) -> 1 | H79: 1
B80: Minimum of 2 out, 2 in, 2 to decon | C80: Y | E80: =+IF($C80="Y",1,0) -> 1 | F80: 1 | G80: 1 | H80: 1
B81: More than 6 Hazmat Technicians | C81: Y | F81: =+IF($C81="Y",1,0) -> 1 | G81: 1 | H81: 1
A82: Training3
B83: Awareness Level (NFPA 472) | C83: Y | D83: 1 | E83: 1 | F83: 1 | G83: 1 | H83: 1
B84: Operations Level (NFPA 472) | C84: Y | D84: 1 | E84: 1 | F84: 1 | G84: 1 | H84: 1
B85: Technician Level (NFPA 472) | C85: Y | E85: 1 | F85: 1 | G85: 1 | H85: 1
B86: Specialist Level (NFPA 472)
B87: Incident Commander (NFPA 472) | C87: Y | D87: =+IF($C87="Y",1,0) -> 1 | E87: 1 | F87: 1 | G87: 1 | H87: 1
A88: Sustainability5
B89: No Technician-level Entries | D89: =+IF($C89="Y",1,IF($C90="Y",1,IF($C91="Y",1,IF($C92="Y",1,IF($C93="Y",1,0))))) -> 1
B90: Less than 3 Entries within 24 hour period | E90: =+IF($C90="Y",1,IF($C91="Y",1,IF($C92="Y",1,IF($C93="Y",1,0)))) -> 1
B91: 3 Entries within 24 hour period | F91: =+IF($C91="Y",1,IF($C92="Y",1,IF($C93="Y",1,0))) -> 1 | I91: =IF(AND(C91<>"",OR(C92="Y",C93="Y")),"Do not enter a value on this line if you entered a 'Y' below.","") -> 
B92: 5 Entries within 24 hour period16 | C92: Y | G92: =+IF($C92="Y",1,IF($C93="Y",1,0)) -> 1 | I92: =IF(AND(C92<>"",C93="Y"),"Do not enter a value on this line if you entered a 'Y' below.","") -> 
B93: 10 Entries within 24 hour period16 | H93: =+IF($C93="Y",1,0) -> 0
B94: Casualty Decon for 6 hour period17 | D94: =+IF($C94="Y",1,IF($C95="Y",1,IF($C96="Y",1,0))) -> 1 | E94: =+IF($C94="Y",1,IF($C95="Y",1,IF($C96="Y",1,0))) -> 1 | I94: =IF(AND(C94<>"",OR(C95="Y",C96="Y")),"Do not enter a value on this line if you entered a 'Y' below.","") -> 
B95: Casualty Decon for 12 hour period17 | C95: Y | F95: =+IF($C95="Y",1,IF($C96="Y",1,0)) -> 1 | G95: =+IF($C95="Y",1,IF($C96="Y",1,0)) -> 1 | I95: =IF(AND(C95<>"",C96="Y"),"Do not enter a value on this line if you entered a 'Y' below.","") -> 
B96: Casualty Decon for 12+ hour period17 | H96: 0
B97: Number met | D97: =SUM(D89:D96,D83:D87,D77:D81,D73:D75:D66,D60:D71,D55:D64,D52:D58,D45:D53,D40:D50,D36:D43,D28:D38,D23:D34,D26) -> 27 | E97: =SUM(E89:E96,E83:E87,E77:E81,E73:E75:E66,E60:E71,E55:E64,E52:E58,E45:E53,E40:E50,E36:E43,E28:E38,E23:E34,E26) -> 34 | F97: =SUM(F89:F96,F83:F87,F77:F81,F73:F75:F66,F60:F71,F55:F64,F52:F58,F45:F53,F40:F50,F36:F43,F28:F38,F23:F34,F26) -> 45 | G97: =SUM(G89:G96,G83:G87,G77:G81,G73:G75:G66,G60:G71,G55:G64,G52:G58,G45:G53,G40:G50,G36:G43,G28:G38,G23:G34,G26) -> 52 | H97: =SUM(H89:H96,H83:H87,H77:H81,H73:H75:H66,H60:H71,H55:H64,H52:H58,H45:H53,H40:H50,H36:H43,H28:H38,H23:H34,H26) -> 55
B98: Number for full compliance with Tire Level | D98: 27 | E98: 34 | F98: 45 | G98: 70 | H98: 90
B99: Meets Tier level requirements | D99: =+IF(D98>D97,"Base N","Base Y") -> Base Y | E99: =+IF(E98>E97,"Tier 1 N","Tier 1 Y") -> Tier 1 Y | F99: =+IF(F98>F97,"Tier 2 N","Tier 2 Y") -> Tier 2 Y | G99: =+IF(G98>G97,"Tier 3 N","Tier 3 Y") -> Tier 3 N | H99: =+IF(H98>H97,"Tier 4 N","Tier 4 Y") -> Tier 4 N
B100: Tier Level Capability | C100: 2
A101: Key
A102: X – Required minimum capability
A103: O – Optional capability
A104: Notes
A105: 1Capability Value – the value to insert into the risk equation for capability. The higher the value, the greater the capability mitigates the risk.
A106: 2Certification – Based upon 29 CFR 1910.120Q or NFPA Standard 472 (2008 Edition) as determined by jurisdiction.
A107: 3Metric – From FEMA 508-4 Typed Resource Definitions for Fire and Hazardous Materials Resources (20 July 2005). Limitations include (1) focused solely on Hazmat Entry Team vice complete Hazmat Response Capability required to manage casualties as well as conduct testing, monitoring, and sampling and (2) focused on National level resources exceeding minimum standards (hence the addition of Baseline and Tier 1 capability sets).
A108: 4Staffing – Additional details provided due to the increase of scope to include Operations-level units, casualty decontamination operations, & Hazmat Response Teams below the FEMA Type III resource definition.
A109: 5Sustainability – Additional capabilities listed to include Operations-level capability & sustained entries over FEMA 508-4 minimum.
A110: 6Specialized Chemicals – As defined by FEMA 508-4 (20 July 2005).
A111: 7Flammable Gas Differentiation – As defined by FEMA 508-4 (20 July 2005).
A112: 8Presumptive Identification of Toxic Industrial Chemicals (TIC) – As defined by FEMA 508-4 (20 July 2005).
A113: 9Presumptive Identification of Hazardous Material Concentration – As defined by FEMA 508-4 (20 July 2005).
A114: 10Personal Dosimeters – As defined by FEMA 508-4 (20 July 2005).
A115: 11Liquid Splash-Protective CPC – As defined by FEMA 508-4 (20 July 2005).
A116: 12Vapor-Protective CPC – As defined by FEMA 508-4 (20 July 2005).
A117: 13Flash Fire Vapor-Protective CPC – As defined by FEMA 508-4 (20 July 2005).
A118: 14Level A-C PPE – As defined by 29 CFR 1910.120Q.
A119: 15Advanced Intervention Capabilities – As defined by FEMA 508-4 (20 July 2005).
A120: 16Entry Capabilities – Expanded beyond FEMA 508-4 minimum.
A121: 17Casualty Decontamination Capabilities – Additional metric due to expansion of scope from Hazmat Entry to Hazmat Response.

Sheet Step 3 to 6
B2: The purpose of these three steps is to determine the Jurisdictional Class (DHS) that best matches the goals for your local or regional emergency response team. Table 3 shows the Jurisdictional Class based on the population characteristics of the local or regional area. Tables 4 though 8 in the Guide suggest response goals associated with those Jurisdictional Classes. The assessor or assessment team addressing the response group's Jurisdictional Class has the option of picking a different Jurisdictional Class based on the goals instead of the population characteristics in Table 3.
B7: Once the Jurisdictional Class is chosen, then the response capabilities tiers for Assessment, Management, Rescue and Control are specified in Table 9.
B9: Note that if the Capability Tiers' performance levels identified in Steps 1 and 2 do not meet the requirements in Table 9, then a gap is identified. The planner has the option of addressing that gap before proceeding. If the choice is to proceed with the assessment recognizing the gap, then it follows that the gaps defied in Steps 10 through 20 will be larger than if the gap is addressed before proceeding.
B13: As was the case in the previous tab, the lightly shaded blue areas are to be filled out by the assessor.
B16: Table 3 in Guide
B17: Jurisdictional Class | C17: Population Threshold | D17: Population Density Threshold
B18: 1 | C18: > 1.5 Million | D18: > 10,000 people/mi2
B19: 2 | C19: 500,000 to 1.5 Million | D19: > 5,000 people/mi2
B20: 3 | C20: 100,000 to 500,000 | D20: > 2,500 people/mi2
B21: 4 | C21: 10,000 to 100,000 | D21: > 1,000 people/mi2
B22: 5 | C22: < 10,000
A24: Step 4 | B24: Assigned Jurisdictional Class (Table Above) | D24: 5
A25: Step 5 | B25: Adjusted Jurisdictional Class (other factors) | D25: 4
B27: Table 9 Response Capability Tiers Based on Jurisdictional Type
B28: Target Outcome | C28: Class 5 | D28: Class 4 | E28: Class 3 | F28: Class 2 | G28: Class 1
C29: Required Capability Tier Level
B30: Assess | C30: 0 | D30: 0 | E30: 0 | F30: 0 | G30: 0
B31: Manage | C31: 1 | D31: 2 | E31: 3 | F31: 4 | G31: 4
B32: Rescue | C32: 0 | D32: 0 | E32: 0 | F32: 0 | G32: 0
B33: Control | C33: 1 | D33: 2 | E33: 3 | F33: 4 | G33: 4
A35: Step 6 | B35: Gaps | C35: Can you perform at the Tier Level Specified in the above table based on the Step 5 Jurisdictional Class assigned (Yes/No)? | I35: Yes
C36: If No, adjust the Jurisdictional Class to one that you can meet - enter value: | I36: 4
C37: (This value will be carried to Steps 16 and 17)
B39: Note: if the Required Capability for the Jurisdictional Class is less than the Capability in Step 1, the first priority should be to correct this gap
B40: before proceeding to the rest of the evaluation. The analysis will assume that this gap has been eliminated for the following steps.

Sheet Steps 10 - 11 Pop Conseq
B2: This is the start of the evaluation of the risk equation shown in Section 1.D of the Guide. It begins in Step 10 and continues until the risk metric equation value is obtained in Step 20.
B5: This worksheet tab focuses totally on the consequences of the release. These consequences can be estimated using a code (model) such as ALOHA that is used to calculate the aerial extent of the plume, using some criteria like the ERPG-2 concentration, and then multiplying that area by the population density to get an estimate of the number of people exposed to above the EPRG-2 level. Alternatively an assessor could just enter and estimated number of exposed people. This might be reasonable in a very rural area with sparse population. Since the scenarios are to be compared based on risk, what is needed is a relative risk level and an absolute risk level.
B12: The estimate of consequence could be very conservatively estimated by using a representative population density for the region and then estimating the ERPG-2 plume area and assuming everyone within the area is fatally injured - a very conservative estimate but acceptable if all the scenarios use the same consequence measure.
B16: The entries in the table below are given as an example and typically the assessor or assessment team using this Guide would fill in their own scenarios. The expectation is that they would simply replace the entries shown . If more scenario lines are needed, just add lines by moving to cursor the row number and the very left of the row, right clicking and clicking on insert. The formulas from the previous row would then be copied down into the new row. The consequence calculation example is described in greater detail in Appendix C of the Guide.
B21: Cells shaded in blue must be calculated and filled in
A23: Consequence Calculation
A24: Facility or Route | B24: Hazard | C24: quantity of material | D24: damage radius or radii for ellipse | E24: Damaged Area | F24: Population Density | G24: Population Consequence
C25: kgs | D25: meters | E25: Acres | F25: people/mi2 | G25: people
A26: Facility z | B26: Fire (Ethylene Oxide) | C26: 40000 | D26: 80 | E26: =+PI()*D26^2/4*0.0002471044 -> 1.242082188 | F26: 500 | G26: =+E26/640*F26 -> 0.9703767096
A27: Facility z | B27: Explosion (Ethylene Oxide) | C27: 40000 | D27: 479 | E27: =+PI()*D27^2/4*0.0002471044 -> 44.52884053 | F27: 500 | G27: 34.78815666
A28: Facility z | B28: Toxic Gas (Chlorine) (L) | C28: 20000 | D28: 525 - 4000 | E28: =+PI()*525*4000*0.0002471044 -> 1630.232872 | F28: 500 | G28: 1273.619431
A29: Facility z | B29: Toxic Gas (Chlorine) (S) | C29: 20000 | D29: 142 - 1000 | E29: =+PI()*142*1000*0.0002471044 -> 110.2347942 | F29: 500 | G29: 86.12093298
A30: step 10-11 facility | B30: step 10 - 11 hazard | C30: step 10-11 value | D30: step 10-11 value | E30: step 10-11 value | F30: step 10-11 value
A31: Roads x | B31: Fire (Gasoline) | C31: 40000 | D31: 80 | E31: =+PI()*D31^2/4*0.0002471044 -> 1.242082188 | F31: 1200 | G31: 2.328904103
A32: Roads x | B32: Toxic Gas (Ammonia) (L) | C32: 20000 | D32: 525 - 4000 | E32: =+PI()*525*4000*0.0002471044 -> 1630.232872 | F32: 1200 | G32: =+E32/640*F32 -> 3056.686635
A33: Roads x | B33: Toxic Gas (Ammonia) (S) | C33: 20000 | D33: 64 - 688 | E33: =+PI()*64*688*0.0002471044 -> 34.18210182 | F33: 1200 | G33: 64.09144092
A34: Roads x | B34: Toxic Liquid (37% HCl) (L) | C34: 20000 | D34: 73 - 781 | E34: =+PI()*73*781*0.0002471044 -> 44.25926988 | F34: 1200 | G34: 82.98613102
A35: Roads x | B35: Toxic Liquid (37% HCl) (S) | C35: 20000 | D35: 24 - 287 | E35: =+PI()*24*287*0.0002471044 -> 5.347163821 | F35: 1200 | G35: 10.02593216
A36: Roads y | B36: Fire (Gasoline) | C36: 28000 | D36: 80 | E36: =+PI()*D36^2/4*0.0002471044 -> 1.242082188 | F36: 1000 | G36: =+E36/640*F36 -> 1.940753419
A37: Roads u | B37: Fire (Gasoline) | C37: 28000 | D37: 80 | E37: =+PI()*D37^2/4*0.0002471044 -> 1.242082188 | F37: 1200 | G37: 2.328904103
A38: Roads u | B38: Toxic Liquid (37% HCl) (L) | C38: 20000 | D38: 73 - 781 | E38: =+PI()*73*781*0.0002471044 -> 44.25926988 | F38: 1200 | G38: 82.98613102
A39: Roads u | B39: Toxic Liquid (37% HCl) (S) | C39: 20000 | D39: 24 - 287 | E39: =+PI()*24*287*0.0002471044 -> 5.347163821 | F39: 1200 | G39: 10.02593216
A40: Road w | B40: Fire (Gasoline) | C40: 28000 | D40: 80 | E40: =+PI()*D40^2/4*0.0002471044 -> 1.242082188 | F40: 1200 | G40: 2.328904103
A41: Road w | B41: Toxic Gas (Ammonia) (L) | C41: 20000 | D41: 525 - 4000 | E41: =+PI()*525*4000*0.0002471044 -> 1630.232872 | F41: 1200 | G41: 3056.686635
A42: Road w | B42: Toxic Gas (Ammonia) (S) | C42: 20000 | D42: 479 | E42: =+PI()*64*688*0.0002471044 -> 34.18210182 | F42: 1200 | G42: 64.09144092
A43: Railroad s | B43: BLEVE (Ethylene Oxide) | C43: 80000 | D43: 500 | E43: =+PI()*D43^2/4*0.0002471044 -> 48.51883548 | F43: 1200 | G43: 90.97281653
A44: Railroad s | B44: Toxic Gas (Chlorine) (L) | C44: 80000 | D44: 1000 - 14000 | E44: =+PI()*1000*14000*0.0002471044 -> 10868.21915 | F44: 1200 | G44: =+E44/640*F44 -> 20377.9109
A45: Railroad s | B45: Toxic Gas (Chlorine) (S) | C45: 80000 | D45: 330 - 4200 | E45: =+PI()*330*4200*0.0002471044 -> 1075.953696 | F45: 1200 | G45: 2017.413179
A46: step 10-12 route | B46: step 10 - 11 hazard | C46: step 10-11 value | D46: step 10-11 value | E46: step 10-11 value | F46: step 10-11 value | G46: =A46=+E46/640*F46 -> 

Sheet Steps 12 - 13 Env Conseq
B2: The assessor can choose to estimate the environmental consequences of all, some or no scenarios. If the assessor or assessment team does not see much potential for environmental damage from a given release then the entries should reflect no damage.
B6: The purpose of this tab is not to complicate the analysis but rather force the assessor or assessment team to consider environmental damage where it is judged to be appropriate to do so. In the example below, the areas used are the same as used in the population consequence calculation in Steps 10 and 11. This need not be the case.
B10: The blue shaded areas are to be filled in, the scenarios are copied from tab "Steps 10 - 11 Pop Conseq" and will automatically be updated in the scenario list is changed on that tab
C14: These two tables are taken from Table C-2 in the Guide.
C16: Table A Value per Building Unit by Population Type and Building Type
C17: Population Type | E17: Residential | F17: Commercial | G17: Industrial
C18: Rural | E18: 150000 | F18: 1200000 | G18: 2400000
C19: Suburban | E19: 1200000 | F19: 12000000 | G19: 24000000
C20: Urban | E20: 8000000 | F20: 50000000 | G20: 100000000
C23: Table B Value per Acre for Damaged Land by Land Type
C24: Land Damage / acre | E24: $ Value | F24: Wetland / Acre | G24: $ Value
C25: Fallow Land | E25: 200 | F25: Unused | G25: 50000
C26: Low Crop Value | E26: 1000 | F26: Low Value | G26: 100000
C27: High Crop Value | E27: 400000 | F27: High Value | G27: 400000
E29: Cells shaded in blue must be calculated and filled in, | H29: others calculated or passed from another worksheet
A30: See Table C-3 and C-4 for additional details regarding the Environmental Consequence Calculation
A31: Facility or Route | B31: Hazard | C31: Quantity of Material | D31: Damage Radius or Radii for Ellipse | E31: Damaged Area | F31: Typical Type Infrastructure Damaged | G31: Land Area Damaged | H31: Number of Infrastructure Units in Hazard Zone | I31: Land Damage Value from Table A Above | J31: Infrastructure Damage | K31: Environmentally Sensitive Land Area Damaged | L31: Typical Type of Land Damaged | M31: Land Damage Value from Table B Above | N31: Environmental Consequence
C32: kgs | D32: meters | E32: Acres | G32: Acres | H32: # | J32: $ | K32: Acres | N32: $
A33: =+'Steps 10 - 11 Pop Conseq'!A26 -> Facility z | B33: =+'Steps 10 - 11 Pop Conseq'!B26 -> Fire (Ethylene Oxide) | C33: =+'Steps 10 - 11 Pop Conseq'!C26 -> 40000 | D33: =+'Steps 10 - 11 Pop Conseq'!D26 -> 80 | E33: =+'Steps 10 - 11 Pop Conseq'!E26 -> 1.242082188 | F33: Commercial/Rural | G33: 1 | H33: 5 | I33: =+F$18 -> 1200000 | J33: =ROUND(I33*G33*H33,-6) -> 6000000 | K33: =+E33*0.2 -> 0.2484164377 | L33: Wetland/Low Value | M33: =+G$26 -> 100000 | N33: =+MIN(ROUND(K33*M33,-4),10000000) -> 20000
A34: =+'Steps 10 - 11 Pop Conseq'!A27 -> Facility z | B34: =+'Steps 10 - 11 Pop Conseq'!B27 -> Explosion (Ethylene Oxide) | C34: =+'Steps 10 - 11 Pop Conseq'!C27 -> 40000 | D34: =+'Steps 10 - 11 Pop Conseq'!D27 -> 479 | E34: =+'Steps 10 - 11 Pop Conseq'!E27 -> 44.52884053 | F34: Commercial/Rural | G34: 2 | H34: 10 | I34: =+F$18 -> 1200000 | J34: =ROUND(I34*G34*H34,-6) -> 24000000 | K34: =+E34*0.2 -> 8.905768105 | L34: Wetland/Low Value | M34: =+G$26 -> 100000 | N34: =+MIN(ROUND(K34*M34,-4),10000000) -> 890000
A35: =+'Steps 10 - 11 Pop Conseq'!A28 -> Facility z | B35: =+'Steps 10 - 11 Pop Conseq'!B28 -> Toxic Gas (Chlorine) (L) | C35: =+'Steps 10 - 11 Pop Conseq'!C28 -> 20000 | D35: =+'Steps 10 - 11 Pop Conseq'!D28 -> 525 - 4000 | E35: =+'Steps 10 - 11 Pop Conseq'!E28 -> 1630.232872 | F35: Commercial/Rural | G35: 4 | H35: 20 | I35: =+F$18 -> 1200000 | J35: =ROUND(I35*G35*H35,-6) -> 96000000 | K35: 326.0465744 | L35: Wetland/Low Value | M35: =+G$26 -> 100000 | N35: =+MIN(ROUND(K35*M35,-4),10000000) -> 10000000
A36: =+'Steps 10 - 11 Pop Conseq'!A29 -> Facility z | B36: =+'Steps 10 - 11 Pop Conseq'!B29 -> Toxic Gas (Chlorine) (S) | C36: =+'Steps 10 - 11 Pop Conseq'!C29 -> 20000 | D36: =+'Steps 10 - 11 Pop Conseq'!D29 -> 142 - 1000 | E36: =+'Steps 10 - 11 Pop Conseq'!E29 -> 110.2347942 | F36: Commercial/Rural | G36: 1 | H36: 5 | I36: =+F$18 -> 1200000 | J36: =ROUND(I36*G36*H36,-6) -> 6000000 | K36: 22.04695884 | L36: Wetland/Low Value | M36: =+G$26 -> 100000 | N36: =+MIN(ROUND(K36*M36,-4),10000000) -> 2200000
A37: =+'Steps 10 - 11 Pop Conseq'!A30 -> step 10-11 facility | B37: =+'Steps 10 - 11 Pop Conseq'!B30 -> step 10 - 11 hazard | C37: =+'Steps 10 - 11 Pop Conseq'!C30 -> step 10-11 value | D37: =+'Steps 10 - 11 Pop Conseq'!D30 -> step 10-11 value | E37: =+'Steps 10 - 11 Pop Conseq'!E30 -> step 10-11 value | F37: step 12 13 value | G37: step 12 13 value | H37: step 12 13 value | I37: step 12 13 value | J37: =ROUND(I37*G37*H37,-6) ->  | L37: step 12 13 value | M37: step 12 13 value | N37: =+MIN(ROUND(K37*M37,-4),10000000) -> 
A38: =+'Steps 10 - 11 Pop Conseq'!A31 -> Roads x | B38: =+'Steps 10 - 11 Pop Conseq'!B31 -> Fire (Gasoline) | C38: =+'Steps 10 - 11 Pop Conseq'!C31 -> 40000 | D38: =+'Steps 10 - 11 Pop Conseq'!D31 -> 80 | E38: =+'Steps 10 - 11 Pop Conseq'!E31 -> 1.242082188 | F38: Resident / Rural | G38: 0.5 | H38: 1 | I38: =+E$18 -> 150000 | J38: =+I38*H38 -> 150000 | K38: 1 | L38: Wetland/Low Value | M38: =+G$26 -> 100000 | N38: =+G38*M38 -> 50000
A39: =+'Steps 10 - 11 Pop Conseq'!A32 -> Roads x | B39: =+'Steps 10 - 11 Pop Conseq'!B32 -> Toxic Gas (Ammonia) (L) | C39: =+'Steps 10 - 11 Pop Conseq'!C32 -> 20000 | D39: =+'Steps 10 - 11 Pop Conseq'!D32 -> 525 - 4000 | E39: =+'Steps 10 - 11 Pop Conseq'!E32 -> 1630.232872 | F39: Resident / Rural | G39: =+PI()*132*132*0.0002471044*0.1 -> 1.352627503 | H39: 2 | I39: 150000 | J39: 300000 | K39: =+PI()*132*132*0.0002471044 -> 13.52627503 | L39: Wetland/Low Value | M39: 100000 | N39: 135262.7503
A40: =+'Steps 10 - 11 Pop Conseq'!A33 -> Roads x | B40: =+'Steps 10 - 11 Pop Conseq'!B33 -> Toxic Gas (Ammonia) (S) | C40: =+'Steps 10 - 11 Pop Conseq'!C33 -> 20000 | D40: =+'Steps 10 - 11 Pop Conseq'!D33 -> 64 - 688 | E40: =+'Steps 10 - 11 Pop Conseq'!E33 -> 34.18210182 | F40: Resident / Rural | G40: =+G39/10 -> 0.1352627503 | H40: 2 | I40: 150000 | J40: 300000 | K40: =+K39/10 -> 1.352627503 | L40: Wetland/Low Value | M40: 100000 | N40: 13526.27503
A41: =+'Steps 10 - 11 Pop Conseq'!A34 -> Roads x | B41: =+'Steps 10 - 11 Pop Conseq'!B34 -> Toxic Liquid (37% HCl) (L) | C41: =+'Steps 10 - 11 Pop Conseq'!C34 -> 20000 | D41: =+'Steps 10 - 11 Pop Conseq'!D34 -> 73 - 781 | E41: =+'Steps 10 - 11 Pop Conseq'!E34 -> 44.25926988 | F41: Resident / Rural | G41: 0.917222634 | H41: 2 | I41: 150000 | J41: 300000 | K41: 9.2 | L41: Wetland/Low Value | M41: 100000 | N41: 91722.2634
A42: =+'Steps 10 - 11 Pop Conseq'!A35 -> Roads x | B42: =+'Steps 10 - 11 Pop Conseq'!B35 -> Toxic Liquid (37% HCl) (S) | C42: =+'Steps 10 - 11 Pop Conseq'!C35 -> 20000 | D42: =+'Steps 10 - 11 Pop Conseq'!D35 -> 24 - 287 | E42: =+'Steps 10 - 11 Pop Conseq'!E35 -> 5.347163821 | F42: Resident / Rural | G42: =+G41/10 -> 0.0917222634 | H42: 1 | I42: 150000 | J42: 150000 | K42: 0.9 | L42: Wetland/Low Value | M42: 100000 | N42: 9172.22634
A43: =+'Steps 10 - 11 Pop Conseq'!A36 -> Roads y | B43: =+'Steps 10 - 11 Pop Conseq'!B36 -> Fire (Gasoline) | C43: =+'Steps 10 - 11 Pop Conseq'!C36 -> 28000 | D43: =+'Steps 10 - 11 Pop Conseq'!D36 -> 80 | E43: =+'Steps 10 - 11 Pop Conseq'!E36 -> 1.242082188 | F43: Resident / Rural | G43: 0.5 | H43: 1 | I43: 150000 | J43: 150000 | K43: 1 | L43: Wetland/Low Value | M43: 100000 | N43: 50000
A44: =+'Steps 10 - 11 Pop Conseq'!A37 -> Roads u | B44: =+'Steps 10 - 11 Pop Conseq'!B37 -> Fire (Gasoline) | C44: =+'Steps 10 - 11 Pop Conseq'!C37 -> 28000 | D44: =+'Steps 10 - 11 Pop Conseq'!D37 -> 80 | E44: =+'Steps 10 - 11 Pop Conseq'!E37 -> 1.242082188 | F44: Resident / Rural | G44: 0.5 | H44: 1 | I44: 150000 | J44: 150000 | K44: 1 | L44: Wetland/Low Value | M44: 100000 | N44: 50000
A45: =+'Steps 10 - 11 Pop Conseq'!A38 -> Roads u | B45: =+'Steps 10 - 11 Pop Conseq'!B38 -> Toxic Liquid (37% HCl) (L) | C45: =+'Steps 10 - 11 Pop Conseq'!C38 -> 20000 | D45: =+'Steps 10 - 11 Pop Conseq'!D38 -> 73 - 781 | E45: =+'Steps 10 - 11 Pop Conseq'!E38 -> 44.25926988 | F45: Resident / Rural | G45: 0.917222634 | H45: 4 | I45: 150000 | J45: 600000 | K45: 9.2 | L45: Wetland/Low Value | M45: 100000 | N45: 91722.2634
A46: =+'Steps 10 - 11 Pop Conseq'!A39 -> Roads u | B46: =+'Steps 10 - 11 Pop Conseq'!B39 -> Toxic Liquid (37% HCl) (S) | C46: =+'Steps 10 - 11 Pop Conseq'!C39 -> 20000 | D46: =+'Steps 10 - 11 Pop Conseq'!D39 -> 24 - 287 | E46: =+'Steps 10 - 11 Pop Conseq'!E39 -> 5.347163821 | F46: Resident / Rural | G46: =+G45/10 -> 0.0917222634 | H46: 4 | I46: 150000 | J46: 600000 | K46: 0.9 | L46: Wetland/Low Value | M46: 100000 | N46: 9172.22634
A47: =+'Steps 10 - 11 Pop Conseq'!A40 -> Road w | B47: =+'Steps 10 - 11 Pop Conseq'!B40 -> Fire (Gasoline) | C47: =+'Steps 10 - 11 Pop Conseq'!C40 -> 28000 | D47: =+'Steps 10 - 11 Pop Conseq'!D40 -> 80 | E47: =+'Steps 10 - 11 Pop Conseq'!E40 -> 1.242082188 | F47: Resident / Rural | G47: 0.5 | H47: 1 | I47: 150000 | J47: 150000 | K47: 1 | L47: Wetland/Low Value | M47: 100000 | N47: 50000
A48: =+'Steps 10 - 11 Pop Conseq'!A41 -> Road w | B48: =+'Steps 10 - 11 Pop Conseq'!B41 -> Toxic Gas (Ammonia) (L) | C48: =+'Steps 10 - 11 Pop Conseq'!C41 -> 20000 | D48: =+'Steps 10 - 11 Pop Conseq'!D41 -> 525 - 4000 | E48: =+'Steps 10 - 11 Pop Conseq'!E41 -> 1630.232872 | F48: Resident / Rural | G48: =+PI()*132*132*0.0002471044*0.1 -> 1.352627503 | H48: 2 | I48: 150000 | J48: 300000 | K48: =+PI()*132*132*0.0002471044 -> 13.52627503 | L48: Wetland/Low Value | M48: 100000 | N48: 135262.7503
A49: =+'Steps 10 - 11 Pop Conseq'!A42 -> Road w | B49: =+'Steps 10 - 11 Pop Conseq'!B42 -> Toxic Gas (Ammonia) (S) | C49: =+'Steps 10 - 11 Pop Conseq'!C42 -> 20000 | D49: =+'Steps 10 - 11 Pop Conseq'!D42 -> 479 | E49: =+'Steps 10 - 11 Pop Conseq'!E42 -> 34.18210182 | F49: Resident / Rural | G49: =+G48/10 -> 0.1352627503 | H49: 1 | I49: 150000 | J49: 150000 | K49: =+K48/10 -> 1.352627503 | L49: Wetland/Low Value | M49: 100000 | N49: 13526.27503
A50: =+'Steps 10 - 11 Pop Conseq'!A43 -> Railroad s | B50: =+'Steps 10 - 11 Pop Conseq'!B43 -> BLEVE (Ethylene Oxide) | C50: =+'Steps 10 - 11 Pop Conseq'!C43 -> 80000 | D50: =+'Steps 10 - 11 Pop Conseq'!D43 -> 500 | E50: =+'Steps 10 - 11 Pop Conseq'!E43 -> 48.51883548 | F50: Resident / Rural | G50: 1 | H50: 2 | I50: 150000 | J50: 300000 | K50: 1 | L50: Wetland/Low Value | M50: 100000 | N50: 100000
A51: =+'Steps 10 - 11 Pop Conseq'!A44 -> Railroad s | B51: =+'Steps 10 - 11 Pop Conseq'!B44 -> Toxic Gas (Chlorine) (L) | C51: =+'Steps 10 - 11 Pop Conseq'!C44 -> 80000 | D51: =+'Steps 10 - 11 Pop Conseq'!D44 -> 1000 - 14000 | E51: =+'Steps 10 - 11 Pop Conseq'!E44 -> 10868.21915 | F51: Resident / Rural | G51: =+PI()*367*367*0.0002471044*0.1 -> 10.45592549 | H51: 20 | I51: 150000 | J51: 3000000 | K51: =+PI()*367*367*0.0002471044 -> 104.5592549 | L51: Wetland/Low Value | M51: 100000 | N51: 1045592.549
A52: =+'Steps 10 - 11 Pop Conseq'!A45 -> Railroad s | B52: =+'Steps 10 - 11 Pop Conseq'!B45 -> Toxic Gas (Chlorine) (S) | C52: =+'Steps 10 - 11 Pop Conseq'!C45 -> 80000 | D52: =+'Steps 10 - 11 Pop Conseq'!D45 -> 330 - 4200 | E52: =+'Steps 10 - 11 Pop Conseq'!E45 -> 1075.953696 | F52: Resident / Rural | G52: =+G51/10 -> 1.045592549 | H52: 2 | I52: 150000 | J52: 300000 | K52: =+K51/10 -> 10.45592549 | L52: Wetland/Low Value | M52: 100000 | N52: 104559.2549
A53: =+'Steps 10 - 11 Pop Conseq'!A46 -> step 10-12 route | B53: =+'Steps 10 - 11 Pop Conseq'!B46 -> step 10 - 11 hazard | C53: =+'Steps 10 - 11 Pop Conseq'!C46 -> step 10-11 value | D53: =+'Steps 10 - 11 Pop Conseq'!D46 -> step 10-11 value | E53: =+'Steps 10 - 11 Pop Conseq'!E46 -> step 10-11 value | F53: step 12 13 value | G53: step 12 13 value | H53: step 12 13 value | I53: step 12 13 value | J53: =ROUND(I53*G53*H53,-6) ->  | K53: =+E53*0.2 ->  | L53: step 12 13 value | M53: step 12 13 value

Sheet Step 14 Max Conseq
B2: The purpose of this tab is to estimate the maximum consequence measure for each scenario by looking at the consequence measure for population, land use, and environmental damage and selecting the maximum. The consequence measures used are shown in the two preceding tabs.
B6: Everything on this tab should be determined based on the entries made for Steps 10 through 13. There are no user entries required on this tab.
B10: For more details, see the discussion of Table 13
B11: Population Measures | C11: Consequence Measure | D11: > this value
B12: None | C12: 1 | D12: 0
B13: 1 to 9 | C13: 2 | D13: 1
B14: 10 to 99 | C14: 3 | D14: 10
B15: 100 to 999 | C15: 4 | D15: 100
B16: > 999 | C16: 5 | D16: 1000
B18: For more details see discussion of Table 13 - the environmental damage columns
B19: Economic Damage | C19: Consequence Measure | D19: > this value
B20: Less than a Million | C20: 1 | D20: 0
B21: 1 to 10 Million | C21: 2 | D21: 999999
B22: > 10 to 100 Million | C22: 3 | D22: 9999999
B23: > 100 to 1 Billion | C23: 4 | D23: 99999999
B24: > 1 Billion | C24: 5 | D24: 999999999
A28: Consequence Measure
A29: Facility or Route | B29: Hazard | C29: Population Consequence | D29: infrastructure damage | E29: Consequence Environmental | F29: Maximum Consequences
C30: [C] | D30: [C] | E30: [C] | F30: [C]
A31: =+'Steps 10 - 11 Pop Conseq'!A26 -> Facility z | B31: =+'Steps 10 - 11 Pop Conseq'!B26 -> Fire (Ethylene Oxide) | C31: =IF('Steps 10 - 11 Pop Conseq'!G26>'Step 14 Max Conseq'!D$16,'Step 14 Max Conseq'!C$16,IF('Steps 10 - 11 Pop Conseq'!G26>'Step 14 Max Conseq'!D$15,'Step 14 Max Conseq'!C$15,IF('Steps 10 - 11 Pop Conseq'!G26>'Step 14 Max Conseq'!D$14,'Step 14 Max Conseq'!C$14,IF('Steps 10 - 11 Pop Conseq'!G26>'Step 14 Max Conseq'!D$13,'Step 14 Max Conseq'!C$13,'Step 14 Max Conseq'!C$12)))) -> 1 | D31: =IF('Steps 12 - 13 Env Conseq'!J33>'Step 14 Max Conseq'!D$24,'Step 14 Max Conseq'!C$24,IF('Steps 12 - 13 Env Conseq'!J33>'Step 14 Max Conseq'!D$23,'Step 14 Max Conseq'!C$23,IF('Steps 12 - 13 Env Conseq'!J33>'Step 14 Max Conseq'!D$22,'Step 14 Max Conseq'!C$22,IF('Steps 12 - 13 Env Conseq'!J33>'Step 14 Max Conseq'!D$21,'Step 14 Max Conseq'!C$21,+C$20)))) -> 2 | E31: =IF('Steps 12 - 13 Env Conseq'!N33>'Step 14 Max Conseq'!D$24,'Step 14 Max Conseq'!C$24,IF('Steps 12 - 13 Env Conseq'!N33>'Step 14 Max Conseq'!D$23,'Step 14 Max Conseq'!C$23,IF('Steps 12 - 13 Env Conseq'!N33>'Step 14 Max Conseq'!D$22,'Step 14 Max Conseq'!C$22,IF('Steps 12 - 13 Env Conseq'!N33>'Step 14 Max Conseq'!D$21,'Step 14 Max Conseq'!C$21,+C$20)))) -> 1 | F31: =MAX(C31:E31) -> 2
A32: =+'Steps 10 - 11 Pop Conseq'!A27 -> Facility z | B32: =+'Steps 10 - 11 Pop Conseq'!B27 -> Explosion (Ethylene Oxide) | C32: =IF('Steps 10 - 11 Pop Conseq'!G27>'Step 14 Max Conseq'!D$16,'Step 14 Max Conseq'!C$16,IF('Steps 10 - 11 Pop Conseq'!G27>'Step 14 Max Conseq'!D$15,'Step 14 Max Conseq'!C$15,IF('Steps 10 - 11 Pop Conseq'!G27>'Step 14 Max Conseq'!D$14,'Step 14 Max Conseq'!C$14,IF('Steps 10 - 11 Pop Conseq'!G27>'Step 14 Max Conseq'!D$13,'Step 14 Max Conseq'!C$13,'Step 14 Max Conseq'!C$12)))) -> 3 | D32: =IF('Steps 12 - 13 Env Conseq'!J34>'Step 14 Max Conseq'!D$24,'Step 14 Max Conseq'!C$24,IF('Steps 12 - 13 Env Conseq'!J34>'Step 14 Max Conseq'!D$23,'Step 14 Max Conseq'!C$23,IF('Steps 12 - 13 Env Conseq'!J34>'Step 14 Max Conseq'!D$22,'Step 14 Max Conseq'!C$22,IF('Steps 12 - 13 Env Conseq'!J34>'Step 14 Max Conseq'!D$21,'Step 14 Max Conseq'!C$21,+C$20)))) -> 3 | E32: =IF('Steps 12 - 13 Env Conseq'!N34>'Step 14 Max Conseq'!D$24,'Step 14 Max Conseq'!C$24,IF('Steps 12 - 13 Env Conseq'!N34>'Step 14 Max Conseq'!D$23,'Step 14 Max Conseq'!C$23,IF('Steps 12 - 13 Env Conseq'!N34>'Step 14 Max Conseq'!D$22,'Step 14 Max Conseq'!C$22,IF('Steps 12 - 13 Env Conseq'!N34>'Step 14 Max Conseq'!D$21,'Step 14 Max Conseq'!C$21,+C$20)))) -> 1 | F32: 3
A33: =+'Steps 10 - 11 Pop Conseq'!A28 -> Facility z | B33: =+'Steps 10 - 11 Pop Conseq'!B28 -> Toxic Gas (Chlorine) (L) | C33: =IF('Steps 10 - 11 Pop Conseq'!G28>'Step 14 Max Conseq'!D$16,'Step 14 Max Conseq'!C$16,IF('Steps 10 - 11 Pop Conseq'!G28>'Step 14 Max Conseq'!D$15,'Step 14 Max Conseq'!C$15,IF('Steps 10 - 11 Pop Conseq'!G28>'Step 14 Max Conseq'!D$14,'Step 14 Max Conseq'!C$14,IF('Steps 10 - 11 Pop Conseq'!G28>'Step 14 Max Conseq'!D$13,'Step 14 Max Conseq'!C$13,'Step 14 Max Conseq'!C$12)))) -> 5 | D33: =IF('Steps 12 - 13 Env Conseq'!J35>'Step 14 Max Conseq'!D$24,'Step 14 Max Conseq'!C$24,IF('Steps 12 - 13 Env Conseq'!J35>'Step 14 Max Conseq'!D$23,'Step 14 Max Conseq'!C$23,IF('Steps 12 - 13 Env Conseq'!J35>'Step 14 Max Conseq'!D$22,'Step 14 Max Conseq'!C$22,IF('Steps 12 - 13 Env Conseq'!J35>'Step 14 Max Conseq'!D$21,'Step 14 Max Conseq'!C$21,+C$20)))) -> 3 | E33: =IF('Steps 12 - 13 Env Conseq'!N35>'Step 14 Max Conseq'!D$24,'Step 14 Max Conseq'!C$24,IF('Steps 12 - 13 Env Conseq'!N35>'Step 14 Max Conseq'!D$23,'Step 14 Max Conseq'!C$23,IF('Steps 12 - 13 Env Conseq'!N35>'Step 14 Max Conseq'!D$22,'Step 14 Max Conseq'!C$22,IF('Steps 12 - 13 Env Conseq'!N35>'Step 14 Max Conseq'!D$21,'Step 14 Max Conseq'!C$21,+C$20)))) -> 3 | F33: 5
A34: =+'Steps 10 - 11 Pop Conseq'!A29 -> Facility z | B34: =+'Steps 10 - 11 Pop Conseq'!B29 -> Toxic Gas (Chlorine) (S) | C34: =IF('Steps 10 - 11 Pop Conseq'!G29>'Step 14 Max Conseq'!D$16,'Step 14 Max Conseq'!C$16,IF('Steps 10 - 11 Pop Conseq'!G29>'Step 14 Max Conseq'!D$15,'Step 14 Max Conseq'!C$15,IF('Steps 10 - 11 Pop Conseq'!G29>'Step 14 Max Conseq'!D$14,'Step 14 Max Conseq'!C$14,IF('Steps 10 - 11 Pop Conseq'!G29>'Step 14 Max Conseq'!D$13,'Step 14 Max Conseq'!C$13,'Step 14 Max Conseq'!C$12)))) -> 3 | D34: =IF('Steps 12 - 13 Env Conseq'!J36>'Step 14 Max Conseq'!D$24,'Step 14 Max Conseq'!C$24,IF('Steps 12 - 13 Env Conseq'!J36>'Step 14 Max Conseq'!D$23,'Step 14 Max Conseq'!C$23,IF('Steps 12 - 13 Env Conseq'!J36>'Step 14 Max Conseq'!D$22,'Step 14 Max Conseq'!C$22,IF('Steps 12 - 13 Env Conseq'!J36>'Step 14 Max Conseq'!D$21,'Step 14 Max Conseq'!C$21,+C$20)))) -> 2 | E34: =IF('Steps 12 - 13 Env Conseq'!N36>'Step 14 Max Conseq'!D$24,'Step 14 Max Conseq'!C$24,IF('Steps 12 - 13 Env Conseq'!N36>'Step 14 Max Conseq'!D$23,'Step 14 Max Conseq'!C$23,IF('Steps 12 - 13 Env Conseq'!N36>'Step 14 Max Conseq'!D$22,'Step 14 Max Conseq'!C$22,IF('Steps 12 - 13 Env Conseq'!N36>'Step 14 Max Conseq'!D$21,'Step 14 Max Conseq'!C$21,+C$20)))) -> 2 | F34: 3
A35: =+'Steps 10 - 11 Pop Conseq'!A30 -> step 10-11 facility | B35: =+'Steps 10 - 11 Pop Conseq'!B30 -> step 10 - 11 hazard | C35: =IF('Steps 10 - 11 Pop Conseq'!G30>'Step 14 Max Conseq'!D$16,'Step 14 Max Conseq'!C$16,IF('Steps 10 - 11 Pop Conseq'!G30>'Step 14 Max Conseq'!D$15,'Step 14 Max Conseq'!C$15,IF('Steps 10 - 11 Pop Conseq'!G30>'Step 14 Max Conseq'!D$14,'Step 14 Max Conseq'!C$14,IF('Steps 10 - 11 Pop Conseq'!G30>'Step 14 Max Conseq'!D$13,'Step 14 Max Conseq'!C$13,'Step 14 Max Conseq'!C$12)))) ->  | D35: =IF('Steps 12 - 13 Env Conseq'!J37>'Step 14 Max Conseq'!D$24,'Step 14 Max Conseq'!C$24,IF('Steps 12 - 13 Env Conseq'!J37>'Step 14 Max Conseq'!D$23,'Step 14 Max Conseq'!C$23,IF('Steps 12 - 13 Env Conseq'!J37>'Step 14 Max Conseq'!D$22,'Step 14 Max Conseq'!C$22,IF('Steps 12 - 13 Env Conseq'!J37>'Step 14 Max Conseq'!D$21,'Step 14 Max Conseq'!C$21,+C$20)))) ->  | E35: =IF('Steps 12 - 13 Env Conseq'!N37>'Step 14 Max Conseq'!D$24,'Step 14 Max Conseq'!C$24,IF('Steps 12 - 13 Env Conseq'!N37>'Step 14 Max Conseq'!D$23,'Step 14 Max Conseq'!C$23,IF('Steps 12 - 13 Env Conseq'!N37>'Step 14 Max Conseq'!D$22,'Step 14 Max Conseq'!C$22,IF('Steps 12 - 13 Env Conseq'!N37>'Step 14 Max Conseq'!D$21,'Step 14 Max Conseq'!C$21,+C$20)))) ->  | F35: =MAX(C35:E35) -> 
A36: =+'Steps 10 - 11 Pop Conseq'!A31 -> Roads x | B36: =+'Steps 10 - 11 Pop Conseq'!B31 -> Fire (Gasoline) | C36: =IF('Steps 10 - 11 Pop Conseq'!G31>'Step 14 Max Conseq'!D$16,'Step 14 Max Conseq'!C$16,IF('Steps 10 - 11 Pop Conseq'!G31>'Step 14 Max Conseq'!D$15,'Step 14 Max Conseq'!C$15,IF('Steps 10 - 11 Pop Conseq'!G31>'Step 14 Max Conseq'!D$14,'Step 14 Max Conseq'!C$14,IF('Steps 10 - 11 Pop Conseq'!G31>'Step 14 Max Conseq'!D$13,'Step 14 Max Conseq'!C$13,'Step 14 Max Conseq'!C$12)))) -> 2 | D36: =IF('Steps 12 - 13 Env Conseq'!J38>'Step 14 Max Conseq'!D$24,'Step 14 Max Conseq'!C$24,IF('Steps 12 - 13 Env Conseq'!J38>'Step 14 Max Conseq'!D$23,'Step 14 Max Conseq'!C$23,IF('Steps 12 - 13 Env Conseq'!J38>'Step 14 Max Conseq'!D$22,'Step 14 Max Conseq'!C$22,IF('Steps 12 - 13 Env Conseq'!J38>'Step 14 Max Conseq'!D$21,'Step 14 Max Conseq'!C$21,+C$20)))) -> 1 | E36: =IF('Steps 12 - 13 Env Conseq'!N38>'Step 14 Max Conseq'!D$24,'Step 14 Max Conseq'!C$24,IF('Steps 12 - 13 Env Conseq'!N38>'Step 14 Max Conseq'!D$23,'Step 14 Max Conseq'!C$23,IF('Steps 12 - 13 Env Conseq'!N38>'Step 14 Max Conseq'!D$22,'Step 14 Max Conseq'!C$22,IF('Steps 12 - 13 Env Conseq'!N38>'Step 14 Max Conseq'!D$21,'Step 14 Max Conseq'!C$21,+C$20)))) -> 1 | F36: 2
A37: =+'Steps 10 - 11 Pop Conseq'!A32 -> Roads x | B37: =+'Steps 10 - 11 Pop Conseq'!B32 -> Toxic Gas (Ammonia) (L) | C37: 5 | D37: =IF('Steps 12 - 13 Env Conseq'!J39>'Step 14 Max Conseq'!D$24,'Step 14 Max Conseq'!C$24,IF('Steps 12 - 13 Env Conseq'!J39>'Step 14 Max Conseq'!D$23,'Step 14 Max Conseq'!C$23,IF('Steps 12 - 13 Env Conseq'!J39>'Step 14 Max Conseq'!D$22,'Step 14 Max Conseq'!C$22,IF('Steps 12 - 13 Env Conseq'!J39>'Step 14 Max Conseq'!D$21,'Step 14 Max Conseq'!C$21,+C$20)))) -> 1 | E37: =IF('Steps 12 - 13 Env Conseq'!N39>'Step 14 Max Conseq'!D$24,'Step 14 Max Conseq'!C$24,IF('Steps 12 - 13 Env Conseq'!N39>'Step 14 Max Conseq'!D$23,'Step 14 Max Conseq'!C$23,IF('Steps 12 - 13 Env Conseq'!N39>'Step 14 Max Conseq'!D$22,'Step 14 Max Conseq'!C$22,IF('Steps 12 - 13 Env Conseq'!N39>'Step 14 Max Conseq'!D$21,'Step 14 Max Conseq'!C$21,+C$20)))) -> 1 | F37: 5
A38: =+'Steps 10 - 11 Pop Conseq'!A33 -> Roads x | B38: =+'Steps 10 - 11 Pop Conseq'!B33 -> Toxic Gas (Ammonia) (S) | C38: 3 | D38: =IF('Steps 12 - 13 Env Conseq'!J40>'Step 14 Max Conseq'!D$24,'Step 14 Max Conseq'!C$24,IF('Steps 12 - 13 Env Conseq'!J40>'Step 14 Max Conseq'!D$23,'Step 14 Max Conseq'!C$23,IF('Steps 12 - 13 Env Conseq'!J40>'Step 14 Max Conseq'!D$22,'Step 14 Max Conseq'!C$22,IF('Steps 12 - 13 Env Conseq'!J40>'Step 14 Max Conseq'!D$21,'Step 14 Max Conseq'!C$21,+C$20)))) -> 1 | E38: =IF('Steps 12 - 13 Env Conseq'!N40>'Step 14 Max Conseq'!D$24,'Step 14 Max Conseq'!C$24,IF('Steps 12 - 13 Env Conseq'!N40>'Step 14 Max Conseq'!D$23,'Step 14 Max Conseq'!C$23,IF('Steps 12 - 13 Env Conseq'!N40>'Step 14 Max Conseq'!D$22,'Step 14 Max Conseq'!C$22,IF('Steps 12 - 13 Env Conseq'!N40>'Step 14 Max Conseq'!D$21,'Step 14 Max Conseq'!C$21,+C$20)))) -> 1 | F38: 3
A39: =+'Steps 10 - 11 Pop Conseq'!A34 -> Roads x | B39: =+'Steps 10 - 11 Pop Conseq'!B34 -> Toxic Liquid (37% HCl) (L) | C39: =IF('Steps 10 - 11 Pop Conseq'!G34>'Step 14 Max Conseq'!D$16,'Step 14 Max Conseq'!C$16,IF('Steps 10 - 11 Pop Conseq'!G34>'Step 14 Max Conseq'!D$15,'Step 14 Max Conseq'!C$15,IF('Steps 10 - 11 Pop Conseq'!G34>'Step 14 Max Conseq'!D$14,'Step 14 Max Conseq'!C$14,IF('Steps 10 - 11 Pop Conseq'!G34>'Step 14 Max Conseq'!D$13,'Step 14 Max Conseq'!C$13,'Step 14 Max Conseq'!C$12)))) -> 3 | D39: =IF('Steps 12 - 13 Env Conseq'!J41>'Step 14 Max Conseq'!D$24,'Step 14 Max Conseq'!C$24,IF('Steps 12 - 13 Env Conseq'!J41>'Step 14 Max Conseq'!D$23,'Step 14 Max Conseq'!C$23,IF('Steps 12 - 13 Env Conseq'!J41>'Step 14 Max Conseq'!D$22,'Step 14 Max Conseq'!C$22,IF('Steps 12 - 13 Env Conseq'!J41>'Step 14 Max Conseq'!D$21,'Step 14 Max Conseq'!C$21,+C$20)))) -> 1 | E39: =IF('Steps 12 - 13 Env Conseq'!N41>'Step 14 Max Conseq'!D$24,'Step 14 Max Conseq'!C$24,IF('Steps 12 - 13 Env Conseq'!N41>'Step 14 Max Conseq'!D$23,'Step 14 Max Conseq'!C$23,IF('Steps 12 - 13 Env Conseq'!N41>'Step 14 Max Conseq'!D$22,'Step 14 Max Conseq'!C$22,IF('Steps 12 - 13 Env Conseq'!N41>'Step 14 Max Conseq'!D$21,'Step 14 Max Conseq'!C$21,+C$20)))) -> 1 | F39: 3
A40: =+'Steps 10 - 11 Pop Conseq'!A35 -> Roads x | B40: =+'Steps 10 - 11 Pop Conseq'!B35 -> Toxic Liquid (37% HCl) (S) | C40: =IF('Steps 10 - 11 Pop Conseq'!G35>'Step 14 Max Conseq'!D$16,'Step 14 Max Conseq'!C$16,IF('Steps 10 - 11 Pop Conseq'!G35>'Step 14 Max Conseq'!D$15,'Step 14 Max Conseq'!C$15,IF('Steps 10 - 11 Pop Conseq'!G35>'Step 14 Max Conseq'!D$14,'Step 14 Max Conseq'!C$14,IF('Steps 10 - 11 Pop Conseq'!G35>'Step 14 Max Conseq'!D$13,'Step 14 Max Conseq'!C$13,'Step 14 Max Conseq'!C$12)))) -> 3 | D40: =IF('Steps 12 - 13 Env Conseq'!J42>'Step 14 Max Conseq'!D$24,'Step 14 Max Conseq'!C$24,IF('Steps 12 - 13 Env Conseq'!J42>'Step 14 Max Conseq'!D$23,'Step 14 Max Conseq'!C$23,IF('Steps 12 - 13 Env Conseq'!J42>'Step 14 Max Conseq'!D$22,'Step 14 Max Conseq'!C$22,IF('Steps 12 - 13 Env Conseq'!J42>'Step 14 Max Conseq'!D$21,'Step 14 Max Conseq'!C$21,+C$20)))) -> 1 | E40: =IF('Steps 12 - 13 Env Conseq'!N42>'Step 14 Max Conseq'!D$24,'Step 14 Max Conseq'!C$24,IF('Steps 12 - 13 Env Conseq'!N42>'Step 14 Max Conseq'!D$23,'Step 14 Max Conseq'!C$23,IF('Steps 12 - 13 Env Conseq'!N42>'Step 14 Max Conseq'!D$22,'Step 14 Max Conseq'!C$22,IF('Steps 12 - 13 Env Conseq'!N42>'Step 14 Max Conseq'!D$21,'Step 14 Max Conseq'!C$21,+C$20)))) -> 1 | F40: =MAX(C40:E40) -> 3
A41: =+'Steps 10 - 11 Pop Conseq'!A36 -> Roads y | B41: =+'Steps 10 - 11 Pop Conseq'!B36 -> Fire (Gasoline) | C41: =IF('Steps 10 - 11 Pop Conseq'!G36>'Step 14 Max Conseq'!D$16,'Step 14 Max Conseq'!C$16,IF('Steps 10 - 11 Pop Conseq'!G36>'Step 14 Max Conseq'!D$15,'Step 14 Max Conseq'!C$15,IF('Steps 10 - 11 Pop Conseq'!G36>'Step 14 Max Conseq'!D$14,'Step 14 Max Conseq'!C$14,IF('Steps 10 - 11 Pop Conseq'!G36>'Step 14 Max Conseq'!D$13,'Step 14 Max Conseq'!C$13,'Step 14 Max Conseq'!C$12)))) -> 2 | D41: =IF('Steps 12 - 13 Env Conseq'!J43>'Step 14 Max Conseq'!D$24,'Step 14 Max Conseq'!C$24,IF('Steps 12 - 13 Env Conseq'!J43>'Step 14 Max Conseq'!D$23,'Step 14 Max Conseq'!C$23,IF('Steps 12 - 13 Env Conseq'!J43>'Step 14 Max Conseq'!D$22,'Step 14 Max Conseq'!C$22,IF('Steps 12 - 13 Env Conseq'!J43>'Step 14 Max Conseq'!D$21,'Step 14 Max Conseq'!C$21,+C$20)))) -> 1 | E41: =IF('Steps 12 - 13 Env Conseq'!N43>'Step 14 Max Conseq'!D$24,'Step 14 Max Conseq'!C$24,IF('Steps 12 - 13 Env Conseq'!N43>'Step 14 Max Conseq'!D$23,'Step 14 Max Conseq'!C$23,IF('Steps 12 - 13 Env Conseq'!N43>'Step 14 Max Conseq'!D$22,'Step 14 Max Conseq'!C$22,IF('Steps 12 - 13 Env Conseq'!N43>'Step 14 Max Conseq'!D$21,'Step 14 Max Conseq'!C$21,+C$20)))) -> 1 | F41: 2
A42: =+'Steps 10 - 11 Pop Conseq'!A37 -> Roads u | B42: =+'Steps 10 - 11 Pop Conseq'!B37 -> Fire (Gasoline) | C42: =IF('Steps 10 - 11 Pop Conseq'!G37>'Step 14 Max Conseq'!D$16,'Step 14 Max Conseq'!C$16,IF('Steps 10 - 11 Pop Conseq'!G37>'Step 14 Max Conseq'!D$15,'Step 14 Max Conseq'!C$15,IF('Steps 10 - 11 Pop Conseq'!G37>'Step 14 Max Conseq'!D$14,'Step 14 Max Conseq'!C$14,IF('Steps 10 - 11 Pop Conseq'!G37>'Step 14 Max Conseq'!D$13,'Step 14 Max Conseq'!C$13,'Step 14 Max Conseq'!C$12)))) -> 2 | D42: =IF('Steps 12 - 13 Env Conseq'!J44>'Step 14 Max Conseq'!D$24,'Step 14 Max Conseq'!C$24,IF('Steps 12 - 13 Env Conseq'!J44>'Step 14 Max Conseq'!D$23,'Step 14 Max Conseq'!C$23,IF('Steps 12 - 13 Env Conseq'!J44>'Step 14 Max Conseq'!D$22,'Step 14 Max Conseq'!C$22,IF('Steps 12 - 13 Env Conseq'!J44>'Step 14 Max Conseq'!D$21,'Step 14 Max Conseq'!C$21,+C$20)))) -> 1 | E42: =IF('Steps 12 - 13 Env Conseq'!N44>'Step 14 Max Conseq'!D$24,'Step 14 Max Conseq'!C$24,IF('Steps 12 - 13 Env Conseq'!N44>'Step 14 Max Conseq'!D$23,'Step 14 Max Conseq'!C$23,IF('Steps 12 - 13 Env Conseq'!N44>'Step 14 Max Conseq'!D$22,'Step 14 Max Conseq'!C$22,IF('Steps 12 - 13 Env Conseq'!N44>'Step 14 Max Conseq'!D$21,'Step 14 Max Conseq'!C$21,+C$20)))) -> 1 | F42: 2
A43: =+'Steps 10 - 11 Pop Conseq'!A38 -> Roads u | B43: =+'Steps 10 - 11 Pop Conseq'!B38 -> Toxic Liquid (37% HCl) (L) | C43: =IF('Steps 10 - 11 Pop Conseq'!G38>'Step 14 Max Conseq'!D$16,'Step 14 Max Conseq'!C$16,IF('Steps 10 - 11 Pop Conseq'!G38>'Step 14 Max Conseq'!D$15,'Step 14 Max Conseq'!C$15,IF('Steps 10 - 11 Pop Conseq'!G38>'Step 14 Max Conseq'!D$14,'Step 14 Max Conseq'!C$14,IF('Steps 10 - 11 Pop Conseq'!G38>'Step 14 Max Conseq'!D$13,'Step 14 Max Conseq'!C$13,'Step 14 Max Conseq'!C$12)))) -> 3 | D43: =IF('Steps 12 - 13 Env Conseq'!J45>'Step 14 Max Conseq'!D$24,'Step 14 Max Conseq'!C$24,IF('Steps 12 - 13 Env Conseq'!J45>'Step 14 Max Conseq'!D$23,'Step 14 Max Conseq'!C$23,IF('Steps 12 - 13 Env Conseq'!J45>'Step 14 Max Conseq'!D$22,'Step 14 Max Conseq'!C$22,IF('Steps 12 - 13 Env Conseq'!J45>'Step 14 Max Conseq'!D$21,'Step 14 Max Conseq'!C$21,+C$20)))) -> 1 | E43: =IF('Steps 12 - 13 Env Conseq'!N45>'Step 14 Max Conseq'!D$24,'Step 14 Max Conseq'!C$24,IF('Steps 12 - 13 Env Conseq'!N45>'Step 14 Max Conseq'!D$23,'Step 14 Max Conseq'!C$23,IF('Steps 12 - 13 Env Conseq'!N45>'Step 14 Max Conseq'!D$22,'Step 14 Max Conseq'!C$22,IF('Steps 12 - 13 Env Conseq'!N45>'Step 14 Max Conseq'!D$21,'Step 14 Max Conseq'!C$21,+C$20)))) -> 1 | F43: 3
A44: =+'Steps 10 - 11 Pop Conseq'!A39 -> Roads u | B44: =+'Steps 10 - 11 Pop Conseq'!B39 -> Toxic Liquid (37% HCl) (S) | C44: =IF('Steps 10 - 11 Pop Conseq'!G39>'Step 14 Max Conseq'!D$16,'Step 14 Max Conseq'!C$16,IF('Steps 10 - 11 Pop Conseq'!G39>'Step 14 Max Conseq'!D$15,'Step 14 Max Conseq'!C$15,IF('Steps 10 - 11 Pop Conseq'!G39>'Step 14 Max Conseq'!D$14,'Step 14 Max Conseq'!C$14,IF('Steps 10 - 11 Pop Conseq'!G39>'Step 14 Max Conseq'!D$13,'Step 14 Max Conseq'!C$13,'Step 14 Max Conseq'!C$12)))) -> 3 | D44: =IF('Steps 12 - 13 Env Conseq'!J46>'Step 14 Max Conseq'!D$24,'Step 14 Max Conseq'!C$24,IF('Steps 12 - 13 Env Conseq'!J46>'Step 14 Max Conseq'!D$23,'Step 14 Max Conseq'!C$23,IF('Steps 12 - 13 Env Conseq'!J46>'Step 14 Max Conseq'!D$22,'Step 14 Max Conseq'!C$22,IF('Steps 12 - 13 Env Conseq'!J46>'Step 14 Max Conseq'!D$21,'Step 14 Max Conseq'!C$21,+C$20)))) -> 1 | E44: =IF('Steps 12 - 13 Env Conseq'!N46>'Step 14 Max Conseq'!D$24,'Step 14 Max Conseq'!C$24,IF('Steps 12 - 13 Env Conseq'!N46>'Step 14 Max Conseq'!D$23,'Step 14 Max Conseq'!C$23,IF('Steps 12 - 13 Env Conseq'!N46>'Step 14 Max Conseq'!D$22,'Step 14 Max Conseq'!C$22,IF('Steps 12 - 13 Env Conseq'!N46>'Step 14 Max Conseq'!D$21,'Step 14 Max Conseq'!C$21,+C$20)))) -> 1 | F44: 3
A45: =+'Steps 10 - 11 Pop Conseq'!A40 -> Road w | B45: =+'Steps 10 - 11 Pop Conseq'!B40 -> Fire (Gasoline) | C45: =IF('Steps 10 - 11 Pop Conseq'!G40>'Step 14 Max Conseq'!D$16,'Step 14 Max Conseq'!C$16,IF('Steps 10 - 11 Pop Conseq'!G40>'Step 14 Max Conseq'!D$15,'Step 14 Max Conseq'!C$15,IF('Steps 10 - 11 Pop Conseq'!G40>'Step 14 Max Conseq'!D$14,'Step 14 Max Conseq'!C$14,IF('Steps 10 - 11 Pop Conseq'!G40>'Step 14 Max Conseq'!D$13,'Step 14 Max Conseq'!C$13,'Step 14 Max Conseq'!C$12)))) -> 2 | D45: =IF('Steps 12 - 13 Env Conseq'!J47>'Step 14 Max Conseq'!D$24,'Step 14 Max Conseq'!C$24,IF('Steps 12 - 13 Env Conseq'!J47>'Step 14 Max Conseq'!D$23,'Step 14 Max Conseq'!C$23,IF('Steps 12 - 13 Env Conseq'!J47>'Step 14 Max Conseq'!D$22,'Step 14 Max Conseq'!C$22,IF('Steps 12 - 13 Env Conseq'!J47>'Step 14 Max Conseq'!D$21,'Step 14 Max Conseq'!C$21,+C$20)))) -> 1 | E45: =IF('Steps 12 - 13 Env Conseq'!N47>'Step 14 Max Conseq'!D$24,'Step 14 Max Conseq'!C$24,IF('Steps 12 - 13 Env Conseq'!N47>'Step 14 Max Conseq'!D$23,'Step 14 Max Conseq'!C$23,IF('Steps 12 - 13 Env Conseq'!N47>'Step 14 Max Conseq'!D$22,'Step 14 Max Conseq'!C$22,IF('Steps 12 - 13 Env Conseq'!N47>'Step 14 Max Conseq'!D$21,'Step 14 Max Conseq'!C$21,+C$20)))) -> 1 | F45: 2
A46: =+'Steps 10 - 11 Pop Conseq'!A41 -> Road w | B46: =+'Steps 10 - 11 Pop Conseq'!B41 -> Toxic Gas (Ammonia) (L) | C46: =IF('Steps 10 - 11 Pop Conseq'!G41>'Step 14 Max Conseq'!D$16,'Step 14 Max Conseq'!C$16,IF('Steps 10 - 11 Pop Conseq'!G41>'Step 14 Max Conseq'!D$15,'Step 14 Max Conseq'!C$15,IF('Steps 10 - 11 Pop Conseq'!G41>'Step 14 Max Conseq'!D$14,'Step 14 Max Conseq'!C$14,IF('Steps 10 - 11 Pop Conseq'!G41>'Step 14 Max Conseq'!D$13,'Step 14 Max Conseq'!C$13,'Step 14 Max Conseq'!C$12)))) -> 5 | D46: =IF('Steps 12 - 13 Env Conseq'!J48>'Step 14 Max Conseq'!D$24,'Step 14 Max Conseq'!C$24,IF('Steps 12 - 13 Env Conseq'!J48>'Step 14 Max Conseq'!D$23,'Step 14 Max Conseq'!C$23,IF('Steps 12 - 13 Env Conseq'!J48>'Step 14 Max Conseq'!D$22,'Step 14 Max Conseq'!C$22,IF('Steps 12 - 13 Env Conseq'!J48>'Step 14 Max Conseq'!D$21,'Step 14 Max Conseq'!C$21,+C$20)))) -> 1 | E46: =IF('Steps 12 - 13 Env Conseq'!N48>'Step 14 Max Conseq'!D$24,'Step 14 Max Conseq'!C$24,IF('Steps 12 - 13 Env Conseq'!N48>'Step 14 Max Conseq'!D$23,'Step 14 Max Conseq'!C$23,IF('Steps 12 - 13 Env Conseq'!N48>'Step 14 Max Conseq'!D$22,'Step 14 Max Conseq'!C$22,IF('Steps 12 - 13 Env Conseq'!N48>'Step 14 Max Conseq'!D$21,'Step 14 Max Conseq'!C$21,+C$20)))) -> 1 | F46: 5
A47: =+'Steps 10 - 11 Pop Conseq'!A42 -> Road w | B47: =+'Steps 10 - 11 Pop Conseq'!B42 -> Toxic Gas (Ammonia) (S) | C47: =IF('Steps 10 - 11 Pop Conseq'!G42>'Step 14 Max Conseq'!D$16,'Step 14 Max Conseq'!C$16,IF('Steps 10 - 11 Pop Conseq'!G42>'Step 14 Max Conseq'!D$15,'Step 14 Max Conseq'!C$15,IF('Steps 10 - 11 Pop Conseq'!G42>'Step 14 Max Conseq'!D$14,'Step 14 Max Conseq'!C$14,IF('Steps 10 - 11 Pop Conseq'!G42>'Step 14 Max Conseq'!D$13,'Step 14 Max Conseq'!C$13,'Step 14 Max Conseq'!C$12)))) -> 3 | D47: =IF('Steps 12 - 13 Env Conseq'!J49>'Step 14 Max Conseq'!D$24,'Step 14 Max Conseq'!C$24,IF('Steps 12 - 13 Env Conseq'!J49>'Step 14 Max Conseq'!D$23,'Step 14 Max Conseq'!C$23,IF('Steps 12 - 13 Env Conseq'!J49>'Step 14 Max Conseq'!D$22,'Step 14 Max Conseq'!C$22,IF('Steps 12 - 13 Env Conseq'!J49>'Step 14 Max Conseq'!D$21,'Step 14 Max Conseq'!C$21,+C$20)))) -> 1 | E47: =IF('Steps 12 - 13 Env Conseq'!N49>'Step 14 Max Conseq'!D$24,'Step 14 Max Conseq'!C$24,IF('Steps 12 - 13 Env Conseq'!N49>'Step 14 Max Conseq'!D$23,'Step 14 Max Conseq'!C$23,IF('Steps 12 - 13 Env Conseq'!N49>'Step 14 Max Conseq'!D$22,'Step 14 Max Conseq'!C$22,IF('Steps 12 - 13 Env Conseq'!N49>'Step 14 Max Conseq'!D$21,'Step 14 Max Conseq'!C$21,+C$20)))) -> 1 | F47: 3
A48: =+'Steps 10 - 11 Pop Conseq'!A43 -> Railroad s | B48: =+'Steps 10 - 11 Pop Conseq'!B43 -> BLEVE (Ethylene Oxide) | C48: =IF('Steps 10 - 11 Pop Conseq'!G43>'Step 14 Max Conseq'!D$16,'Step 14 Max Conseq'!C$16,IF('Steps 10 - 11 Pop Conseq'!G43>'Step 14 Max Conseq'!D$15,'Step 14 Max Conseq'!C$15,IF('Steps 10 - 11 Pop Conseq'!G43>'Step 14 Max Conseq'!D$14,'Step 14 Max Conseq'!C$14,IF('Steps 10 - 11 Pop Conseq'!G43>'Step 14 Max Conseq'!D$13,'Step 14 Max Conseq'!C$13,'Step 14 Max Conseq'!C$12)))) -> 3 | D48: =IF('Steps 12 - 13 Env Conseq'!J50>'Step 14 Max Conseq'!D$24,'Step 14 Max Conseq'!C$24,IF('Steps 12 - 13 Env Conseq'!J50>'Step 14 Max Conseq'!D$23,'Step 14 Max Conseq'!C$23,IF('Steps 12 - 13 Env Conseq'!J50>'Step 14 Max Conseq'!D$22,'Step 14 Max Conseq'!C$22,IF('Steps 12 - 13 Env Conseq'!J50>'Step 14 Max Conseq'!D$21,'Step 14 Max Conseq'!C$21,+C$20)))) -> 1 | E48: =IF('Steps 12 - 13 Env Conseq'!N50>'Step 14 Max Conseq'!D$24,'Step 14 Max Conseq'!C$24,IF('Steps 12 - 13 Env Conseq'!N50>'Step 14 Max Conseq'!D$23,'Step 14 Max Conseq'!C$23,IF('Steps 12 - 13 Env Conseq'!N50>'Step 14 Max Conseq'!D$22,'Step 14 Max Conseq'!C$22,IF('Steps 12 - 13 Env Conseq'!N50>'Step 14 Max Conseq'!D$21,'Step 14 Max Conseq'!C$21,+C$20)))) -> 1 | F48: 3
A49: =+'Steps 10 - 11 Pop Conseq'!A44 -> Railroad s | B49: =+'Steps 10 - 11 Pop Conseq'!B44 -> Toxic Gas (Chlorine) (L) | C49: =IF('Steps 10 - 11 Pop Conseq'!G44>'Step 14 Max Conseq'!D$16,'Step 14 Max Conseq'!C$16,IF('Steps 10 - 11 Pop Conseq'!G44>'Step 14 Max Conseq'!D$15,'Step 14 Max Conseq'!C$15,IF('Steps 10 - 11 Pop Conseq'!G44>'Step 14 Max Conseq'!D$14,'Step 14 Max Conseq'!C$14,IF('Steps 10 - 11 Pop Conseq'!G44>'Step 14 Max Conseq'!D$13,'Step 14 Max Conseq'!C$13,'Step 14 Max Conseq'!C$12)))) -> 5 | D49: =IF('Steps 12 - 13 Env Conseq'!J51>'Step 14 Max Conseq'!D$24,'Step 14 Max Conseq'!C$24,IF('Steps 12 - 13 Env Conseq'!J51>'Step 14 Max Conseq'!D$23,'Step 14 Max Conseq'!C$23,IF('Steps 12 - 13 Env Conseq'!J51>'Step 14 Max Conseq'!D$22,'Step 14 Max Conseq'!C$22,IF('Steps 12 - 13 Env Conseq'!J51>'Step 14 Max Conseq'!D$21,'Step 14 Max Conseq'!C$21,+C$20)))) -> 2 | E49: =IF('Steps 12 - 13 Env Conseq'!N51>'Step 14 Max Conseq'!D$24,'Step 14 Max Conseq'!C$24,IF('Steps 12 - 13 Env Conseq'!N51>'Step 14 Max Conseq'!D$23,'Step 14 Max Conseq'!C$23,IF('Steps 12 - 13 Env Conseq'!N51>'Step 14 Max Conseq'!D$22,'Step 14 Max Conseq'!C$22,IF('Steps 12 - 13 Env Conseq'!N51>'Step 14 Max Conseq'!D$21,'Step 14 Max Conseq'!C$21,+C$20)))) -> 2 | F49: 5
A50: =+'Steps 10 - 11 Pop Conseq'!A45 -> Railroad s | B50: =+'Steps 10 - 11 Pop Conseq'!B45 -> Toxic Gas (Chlorine) (S) | C50: =IF('Steps 10 - 11 Pop Conseq'!G45>'Step 14 Max Conseq'!D$16,'Step 14 Max Conseq'!C$16,IF('Steps 10 - 11 Pop Conseq'!G45>'Step 14 Max Conseq'!D$15,'Step 14 Max Conseq'!C$15,IF('Steps 10 - 11 Pop Conseq'!G45>'Step 14 Max Conseq'!D$14,'Step 14 Max Conseq'!C$14,IF('Steps 10 - 11 Pop Conseq'!G45>'Step 14 Max Conseq'!D$13,'Step 14 Max Conseq'!C$13,'Step 14 Max Conseq'!C$12)))) -> 5 | D50: =IF('Steps 12 - 13 Env Conseq'!J52>'Step 14 Max Conseq'!D$24,'Step 14 Max Conseq'!C$24,IF('Steps 12 - 13 Env Conseq'!J52>'Step 14 Max Conseq'!D$23,'Step 14 Max Conseq'!C$23,IF('Steps 12 - 13 Env Conseq'!J52>'Step 14 Max Conseq'!D$22,'Step 14 Max Conseq'!C$22,IF('Steps 12 - 13 Env Conseq'!J52>'Step 14 Max Conseq'!D$21,'Step 14 Max Conseq'!C$21,+C$20)))) -> 1 | E50: =IF('Steps 12 - 13 Env Conseq'!N52>'Step 14 Max Conseq'!D$24,'Step 14 Max Conseq'!C$24,IF('Steps 12 - 13 Env Conseq'!N52>'Step 14 Max Conseq'!D$23,'Step 14 Max Conseq'!C$23,IF('Steps 12 - 13 Env Conseq'!N52>'Step 14 Max Conseq'!D$22,'Step 14 Max Conseq'!C$22,IF('Steps 12 - 13 Env Conseq'!N52>'Step 14 Max Conseq'!D$21,'Step 14 Max Conseq'!C$21,+C$20)))) -> 1 | F50: 5
A51: =+'Steps 10 - 11 Pop Conseq'!A46 -> step 10-12 route | B51: =+'Steps 10 - 11 Pop Conseq'!B46 -> step 10 - 11 hazard | C51: =IF('Steps 10 - 11 Pop Conseq'!G46>'Step 14 Max Conseq'!D$16,'Step 14 Max Conseq'!C$16,IF('Steps 10 - 11 Pop Conseq'!G46>'Step 14 Max Conseq'!D$15,'Step 14 Max Conseq'!C$15,IF('Steps 10 - 11 Pop Conseq'!G46>'Step 14 Max Conseq'!D$14,'Step 14 Max Conseq'!C$14,IF('Steps 10 - 11 Pop Conseq'!G46>'Step 14 Max Conseq'!D$13,'Step 14 Max Conseq'!C$13,'Step 14 Max Conseq'!C$12)))) ->  | D51: =IF('Steps 12 - 13 Env Conseq'!J53>'Step 14 Max Conseq'!D$24,'Step 14 Max Conseq'!C$24,IF('Steps 12 - 13 Env Conseq'!J53>'Step 14 Max Conseq'!D$23,'Step 14 Max Conseq'!C$23,IF('Steps 12 - 13 Env Conseq'!J53>'Step 14 Max Conseq'!D$22,'Step 14 Max Conseq'!C$22,IF('Steps 12 - 13 Env Conseq'!J53>'Step 14 Max Conseq'!D$21,'Step 14 Max Conseq'!C$21,+C$20)))) ->  | E51: =IF('Steps 12 - 13 Env Conseq'!N53>'Step 14 Max Conseq'!D$24,'Step 14 Max Conseq'!C$24,IF('Steps 12 - 13 Env Conseq'!N53>'Step 14 Max Conseq'!D$23,'Step 14 Max Conseq'!C$23,IF('Steps 12 - 13 Env Conseq'!N53>'Step 14 Max Conseq'!D$22,'Step 14 Max Conseq'!C$22,IF('Steps 12 - 13 Env Conseq'!N53>'Step 14 Max Conseq'!D$21,'Step 14 Max Conseq'!C$21,+C$20)))) -> 
D52: =+'Step 14 Max Conseq'!D31 -> 2 | E52: =+'Steps 12 - 13 Env Conseq'!N33 -> 20000

Sheet Step 16 ERC
B2: Like the previous tab, all the entries under this tab should be automatically filled out based on the entries in steps 6, and steps 10 though 14 .
B4: Table 16 specifies the required Tier level response for the scenario consequence level determined in tab "Step 14 Max Conseq" and the Tier level capabilities were determined in steps 6 though 10 so the gap, if any, can not be calculated without additional data entries by the assessor.
B9: For more details see discussion of Table 16 Required Tier Response Capabilities in Chapter VI
B10: Potential Consequences | C10: Total Population
C11: < 10,000 | D11: 10,000 - < 100,000 | E11: 100,000 - < 500,000 | F11: 500,000 - 1.5 million | G11: > 1.5 million
C12: Jurisdiction Class
C13: 5 | D13: 4 | E13: 3 | F13: 2 | G13: 1
C14: Required Tier Level Response
B15: 1 | C15: 0 | D15: 0 | E15: 0 | F15: 1 | G15: 1
B16: 2 | C16: 0 | D16: 1 | E16: 1 | F16: 2 | G16: 3
B17: 3 | C17: 1 | D17: 1 | E17: 2 | F17: 3 | G17: 4
B18: 4 | C18: 2 | D18: 2 | E18: 3 | F18: 4 | G18: 4
B19: 5 | C19: 3 | D19: 4 | E19: 4 | F19: 4 | G19: 4
B21: Jurisdictional Class Assigned in Step 6 | C21: =+'Step 3 to 6'!I36 -> 4
B22: Tier Level Capability from Step 2 | C22: =+'Step 1 and 2'!C100 -> 2
B24: See discussion of Table 17 in Planning Guide
B25: Basis for Assigning Value | D25: Emergency Response Capability [ERC]
B26: Response meets Required Desired Tier Level Response | D26: 1
B27: Response is one Tier Level below the Required Desired Tier Level Response | D27: 3
B28: Response is two or more Tier Levels below Desired Tier Level Response | D28: 5
B31: Facility or Route | C31: Hazard | D31: Maximum Consequences | E31: Tier Level Response | F31: Tier Level Capability | G31: Capability Gap
D32: From Step 14 | E32: From Jurisdictional Class Table above | F32: From Step 1 | G32: From Table Above
B33: =+'Steps 10 - 11 Pop Conseq'!A26 -> Facility z | C33: =+'Steps 10 - 11 Pop Conseq'!B26 -> Fire (Ethylene Oxide) | D33: =+'Step 14 Max Conseq'!F31 -> 2 | E33: =VLOOKUP(D33,$B$15:$G$19,7-C$21,FALSE) -> 1 | F33: =+C$22 -> 2 | G33: =+IF((E33-F33)>1,D$28,IF((E33-F33)>0,D$27,D$26)) -> 1
B34: =+'Steps 10 - 11 Pop Conseq'!A27 -> Facility z | C34: =+'Steps 10 - 11 Pop Conseq'!B27 -> Explosion (Ethylene Oxide) | D34: =+'Step 14 Max Conseq'!F32 -> 3 | E34: =VLOOKUP(D34,$B$15:$G$19,7-C$21,FALSE) -> 1 | F34: =+C$22 -> 2 | G34: =+IF((E34-F34)>1,D$28,IF((E34-F34)>0,D$27,D$26)) -> 1
B35: =+'Steps 10 - 11 Pop Conseq'!A28 -> Facility z | C35: =+'Steps 10 - 11 Pop Conseq'!B28 -> Toxic Gas (Chlorine) (L) | D35: =+'Step 14 Max Conseq'!F33 -> 5 | E35: 4 | F35: =+C$22 -> 2 | G35: =+IF((E35-F35)>1,D$28,IF((E35-F35)>0,D$27,D$26)) -> 5
B36: =+'Steps 10 - 11 Pop Conseq'!A29 -> Facility z | C36: =+'Steps 10 - 11 Pop Conseq'!B29 -> Toxic Gas (Chlorine) (S) | D36: =+'Step 14 Max Conseq'!F34 -> 3 | E36: 1 | F36: =+C$22 -> 2 | G36: =+IF((E36-F36)>1,D$28,IF((E36-F36)>0,D$27,D$26)) -> 1
B37: =+'Steps 10 - 11 Pop Conseq'!A30 -> step 10-11 facility | C37: =+'Steps 10 - 11 Pop Conseq'!B30 -> step 10 - 11 hazard | D37: =+'Step 14 Max Conseq'!F35 ->  | E37: =VLOOKUP(D37,$B$15:$G$19,7-C$21,FALSE) ->  | F37: =+C$22 -> 2 | G37: =+IF((E37-F37)>1,D$28,IF((E37-F37)>0,D$27,D$26)) -> 
B38: =+'Steps 10 - 11 Pop Conseq'!A31 -> Roads x | C38: =+'Steps 10 - 11 Pop Conseq'!B31 -> Fire (Gasoline) | D38: =+'Step 14 Max Conseq'!F36 -> 2 | E38: =VLOOKUP(D38,$B$15:$G$19,7-C$21,FALSE) -> 1 | F38: =+C$22 -> 2 | G38: =+IF((E38-F38)>1,D$28,IF((E38-F38)>0,D$27,D$26)) -> 1
B39: =+'Steps 10 - 11 Pop Conseq'!A32 -> Roads x | C39: =+'Steps 10 - 11 Pop Conseq'!B32 -> Toxic Gas (Ammonia) (L) | D39: =+'Step 14 Max Conseq'!F37 -> 5 | E39: 4 | F39: 2 | G39: 5
B40: =+'Steps 10 - 11 Pop Conseq'!A33 -> Roads x | C40: =+'Steps 10 - 11 Pop Conseq'!B33 -> Toxic Gas (Ammonia) (S) | D40: =+'Step 14 Max Conseq'!F38 -> 3 | E40: 1 | F40: 2 | G40: 1
B41: =+'Steps 10 - 11 Pop Conseq'!A34 -> Roads x | C41: =+'Steps 10 - 11 Pop Conseq'!B34 -> Toxic Liquid (37% HCl) (L) | D41: =+'Step 14 Max Conseq'!F39 -> 3 | E41: 1 | F41: 2 | G41: 1
B42: =+'Steps 10 - 11 Pop Conseq'!A35 -> Roads x | C42: =+'Steps 10 - 11 Pop Conseq'!B35 -> Toxic Liquid (37% HCl) (S) | D42: =+'Step 14 Max Conseq'!F41 -> 2 | E42: 1 | F42: 2 | G42: 1
B43: =+'Steps 10 - 11 Pop Conseq'!A36 -> Roads y | C43: =+'Steps 10 - 11 Pop Conseq'!B36 -> Fire (Gasoline) | D43: =+'Step 14 Max Conseq'!F41 -> 2 | E43: 1 | F43: 2 | G43: 1
B44: =+'Steps 10 - 11 Pop Conseq'!A37 -> Roads u | C44: =+'Steps 10 - 11 Pop Conseq'!B37 -> Fire (Gasoline) | D44: =+'Step 14 Max Conseq'!F42 -> 2 | E44: 1 | F44: 2 | G44: 1
B45: =+'Steps 10 - 11 Pop Conseq'!A38 -> Roads u | C45: =+'Steps 10 - 11 Pop Conseq'!B38 -> Toxic Liquid (37% HCl) (L) | D45: =+'Step 14 Max Conseq'!F43 -> 3 | E45: 1 | F45: 2 | G45: 1
B46: =+'Steps 10 - 11 Pop Conseq'!A39 -> Roads u | C46: =+'Steps 10 - 11 Pop Conseq'!B39 -> Toxic Liquid (37% HCl) (S) | D46: =+'Step 14 Max Conseq'!F44 -> 3 | E46: 1 | F46: 2 | G46: 1
B47: =+'Steps 10 - 11 Pop Conseq'!A40 -> Road w | C47: =+'Steps 10 - 11 Pop Conseq'!B40 -> Fire (Gasoline) | D47: =+'Step 14 Max Conseq'!F45 -> 2 | E47: 1 | F47: 2 | G47: 1
B48: =+'Steps 10 - 11 Pop Conseq'!A41 -> Road w | C48: =+'Steps 10 - 11 Pop Conseq'!B41 -> Toxic Gas (Ammonia) (L) | D48: =+'Step 14 Max Conseq'!F46 -> 5 | E48: 4 | F48: 2 | G48: 5
B49: =+'Steps 10 - 11 Pop Conseq'!A42 -> Road w | C49: =+'Steps 10 - 11 Pop Conseq'!B42 -> Toxic Gas (Ammonia) (S) | D49: =+'Step 14 Max Conseq'!F47 -> 3 | E49: 1 | F49: 2 | G49: 1
B50: =+'Steps 10 - 11 Pop Conseq'!A43 -> Railroad s | C50: =+'Steps 10 - 11 Pop Conseq'!B43 -> BLEVE (Ethylene Oxide) | D50: =+'Step 14 Max Conseq'!F48 -> 3 | E50: 1 | F50: 2 | G50: 1
B51: =+'Steps 10 - 11 Pop Conseq'!A44 -> Railroad s | C51: =+'Steps 10 - 11 Pop Conseq'!B44 -> Toxic Gas (Chlorine) (L) | D51: =+'Step 14 Max Conseq'!F49 -> 5 | E51: 4 | F51: 2 | G51: 5
B52: =+'Steps 10 - 11 Pop Conseq'!A45 -> Railroad s | C52: =+'Steps 10 - 11 Pop Conseq'!B45 -> Toxic Gas (Chlorine) (S) | D52: =+'Step 14 Max Conseq'!F50 -> 5 | E52: 4 | F52: 2 | G52: 5
B53: =+'Steps 10 - 11 Pop Conseq'!A46 -> step 10-12 route | C53: =+'Steps 10 - 11 Pop Conseq'!B46 -> step 10 - 11 hazard | D53: =+'Step 14 Max Conseq'!F51 ->  | E53: =VLOOKUP(D53,$B$15:$G$19,7-C$21,FALSE) ->  | F53: =+C$22 -> 2 | G53: =+IF((E53-F53)>1,D$28,IF((E53-F53)>0,D$27,D$26)) -> 

Sheet Step 17 RTF
F1: Selected Jurisdiciton Level
B2: In Steps 6 - 9 the Jurisdiction Level you selected as a goal is copied here. No assessor entry is required. | F2: 4
C5: Response Time Factor [RTF] | D5: Description
C6: 1 | D6: Meets or exceeds desired response time
C7: 2 | D7: Response time is within 125 percent of desired response time
C8: 3 | D8: Response time is within 150 percent of desired response time
C9: 4 | D9: Response time is within 200 percent of the desired response time
C10: 5 | D10: Response time is more than double the desired response time
B13: Response Times and Response Levels
B14: Jurisdiction Type | C14: 5 | D14: 4 | E14: 3 | F14: 2 | G14: 1
B15: Number of Accident Sites | C15: 1 | D15: 1 | E15: 1 | F15: 2 | G15: 3
B16: Time | C16: minutes
A17: 1 | B17: Assess | C17: 5 | D17: 5 | E17: 5 | F17: 5 | G17: 5
A18: 2 | B18: Manage | C18: 60 | D18: 45 | E18: 30 | F18: 30 | G18: 30
A19: 3 | B19: Rescue | C19: 60 | D19: 10 | E19: 10 | F19: 10 | G19: 10
A20: 4 | B20: Control | C20: 90 | D20: 60 | E20: 45 | F20: 30 | G20: 30
C21: Minimum Tier Level Response and Access Additional Number of Tier 3/4 Teams Required
A22: 6 | B22: Required non-Ambulatory rescues | C22: 5 | D22: 10 | E22: 100 | F22: 200 | G22: 500
A23: 7 | B23: Incident Commander Tier | C23: 1 | D23: 2 | E23: 3 | F23: 4 | G23: 4
A24: 8 | B24: Control Team Tier | C24: 1 | D24: 2 | E24: 3 | F24: 4 | G24: 4
A25: 9 | B25: Access to Tier 3/4 Teams (#) | C25: 1 | D25: 1 | E25: 2 | F25: 4 | G25: 4
B27: Jurisdiction Level Selected Step 6 | D27: =+'Step 3 to 6'!I36 -> 4
B28: Cells shaded in blue must be calculated and filled in, | E28: others calculated or passed from another worksheet
A29: First Responder Performance
A30: Facility or Route | B30: Hazard | C30: Selected Jurisdiction Level | D30: First Responder Time Goal based on CARVER Scale for Accident | E30: Average Response Time For First Responder (assessor) to Arrive on Scene | F30: Percentage of Response Time Goal | G30: First Responder [RTF]
D31: min | E31: min | F31: %
A32: =+'Steps 10 - 11 Pop Conseq'!A26 -> Facility z | B32: =+'Steps 10 - 11 Pop Conseq'!B26 -> Fire (Ethylene Oxide) | C32: =+F$2 -> 4 | D32: =VLOOKUP($A$17,$A$17:$G$20,8-$D$27,FALSE) -> 5 | E32: 5 | F32: =+E32/D32 -> 1 | G32: =IF(F32<1.01,1,IF(F32<1.26,2,IF(F32<1.51,3,IF(F32<2.01,4,5)))) -> 1
A33: =+'Steps 10 - 11 Pop Conseq'!A27 -> Facility z | B33: =+'Steps 10 - 11 Pop Conseq'!B27 -> Explosion (Ethylene Oxide) | C33: =+F$2 -> 4 | D33: 5 | E33: 5 | F33: 1 | G33: 1
A34: =+'Steps 10 - 11 Pop Conseq'!A28 -> Facility z | B34: =+'Steps 10 - 11 Pop Conseq'!B28 -> Toxic Gas (Chlorine) (L) | C34: =+F$2 -> 4 | D34: 5 | E34: 5 | F34: 1 | G34: 1
A35: =+'Steps 10 - 11 Pop Conseq'!A29 -> Facility z | B35: =+'Steps 10 - 11 Pop Conseq'!B29 -> Toxic Gas (Chlorine) (S) | C35: =+F$2 -> 4 | D35: 5 | E35: 5 | F35: 1 | G35: 1
C36: =+F$2 -> 4 | D36: 5 | F36: 0 | G36: 1
A37: insert additional lines for facility scenarios
A38: =+'Steps 10 - 11 Pop Conseq'!A31 -> Roads x | B38: =+'Steps 10 - 11 Pop Conseq'!B31 -> Fire (Gasoline) | C38: =+F$2 -> 4 | D38: =VLOOKUP(B$17,$B$17:$G$20,6-C38,FALSE) -> 5 | E38: 10 | F38: =+E38/D38 -> 2 | G38: =IF(F38<1.01,1,IF(F38<1.26,2,IF(F38<1.51,3,IF(F38<2.01,4,5)))) -> 4
A39: =+'Steps 10 - 11 Pop Conseq'!A32 -> Roads x | B39: =+'Steps 10 - 11 Pop Conseq'!B32 -> Toxic Gas (Ammonia) (L) | C39: 4 | D39: 5 | E39: 10 | F39: 2 | G39: 4
A40: =+'Steps 10 - 11 Pop Conseq'!A33 -> Roads x | B40: =+'Steps 10 - 11 Pop Conseq'!B33 -> Toxic Gas (Ammonia) (S) | C40: 4 | D40: 5 | E40: 10 | F40: 2 | G40: 4
A41: =+'Steps 10 - 11 Pop Conseq'!A34 -> Roads x | B41: =+'Steps 10 - 11 Pop Conseq'!B34 -> Toxic Liquid (37% HCl) (L) | C41: 4 | D41: 5 | E41: 10 | F41: 2 | G41: 4
A42: =+'Steps 10 - 11 Pop Conseq'!A35 -> Roads x | B42: =+'Steps 10 - 11 Pop Conseq'!B35 -> Toxic Liquid (37% HCl) (S) | C42: 4 | D42: 5 | E42: 10 | F42: 2 | G42: 4
A43: =+'Steps 10 - 11 Pop Conseq'!A36 -> Roads y | B43: =+'Steps 10 - 11 Pop Conseq'!B36 -> Fire (Gasoline) | C43: 4 | D43: 5 | E43: 10 | F43: 2 | G43: 4
A44: =+'Steps 10 - 11 Pop Conseq'!A37 -> Roads u | B44: =+'Steps 10 - 11 Pop Conseq'!B37 -> Fire (Gasoline) | C44: 4 | D44: 5 | E44: 10 | F44: 2 | G44: 4
A45: =+'Steps 10 - 11 Pop Conseq'!A38 -> Roads u | B45: =+'Steps 10 - 11 Pop Conseq'!B38 -> Toxic Liquid (37% HCl) (L) | C45: 4 | D45: 5 | E45: 10 | F45: 2 | G45: 4
A46: =+'Steps 10 - 11 Pop Conseq'!A39 -> Roads u | B46: =+'Steps 10 - 11 Pop Conseq'!B39 -> Toxic Liquid (37% HCl) (S) | C46: 4 | D46: 5 | E46: 10 | F46: 2 | G46: 4
A47: =+'Steps 10 - 11 Pop Conseq'!A40 -> Road w | B47: =+'Steps 10 - 11 Pop Conseq'!B40 -> Fire (Gasoline) | C47: 4 | D47: 5 | E47: 10 | F47: 2 | G47: 4
A48: =+'Steps 10 - 11 Pop Conseq'!A41 -> Road w | B48: =+'Steps 10 - 11 Pop Conseq'!B41 -> Toxic Gas (Ammonia) (L) | C48: 4 | D48: 5 | E48: 10 | F48: 2 | G48: =IF(F48<1.01,1,IF(F48<1.26,2,IF(F48<1.51,3,IF(F48<2.01,4,5)))) -> 4
A49: =+'Steps 10 - 11 Pop Conseq'!A42 -> Road w | B49: =+'Steps 10 - 11 Pop Conseq'!B42 -> Toxic Gas (Ammonia) (S) | C49: 4 | D49: 5 | E49: 10 | F49: 2 | G49: 4
A50: =+'Steps 10 - 11 Pop Conseq'!A43 -> Railroad s | B50: =+'Steps 10 - 11 Pop Conseq'!B43 -> BLEVE (Ethylene Oxide) | C50: 4 | D50: 5 | E50: 10 | F50: =+E50/D50 -> 2 | G50: 4
A51: =+'Steps 10 - 11 Pop Conseq'!A44 -> Railroad s | B51: =+'Steps 10 - 11 Pop Conseq'!B44 -> Toxic Gas (Chlorine) (L) | C51: 4 | D51: 5 | E51: 10 | F51: 2 | G51: 4
A52: =+'Steps 10 - 11 Pop Conseq'!A45 -> Railroad s | B52: =+'Steps 10 - 11 Pop Conseq'!B45 -> Toxic Gas (Chlorine) (S) | C52: 4 | D52: 5 | E52: 10 | F52: 2 | G52: 4
A55: Incident Commander Performance
A56: Facility or Route | B56: Hazard | C56: Selected Jurisdiction Level | D56: Incident Commander Response Time Goal based on Tier Level | E56: =+CONCATENATE("Average Response Time for Incident Commander capable of responding at the Tier ",VLOOKUP(A23,A22:G25,8-D27,FALSE)," to Arrive at Scene") -> Average Response Time for Incident Commander capable of responding at the Tier 2 to Arrive at Scene | F56: Percentage of Response Time Goal | G56: Rescue Team [RTF]
E57: min | F57: min | G57: %
A58: =+'Steps 10 - 11 Pop Conseq'!A26 -> Facility z | B58: =+'Steps 10 - 11 Pop Conseq'!B26 -> Fire (Ethylene Oxide) | C58: =+F$2 -> 4 | D58: =VLOOKUP($A$18,$A$17:$G$20,8-$D$27,FALSE) -> 45 | E58: 15 | F58: =+E58/D58 -> 0.3333333333 | G58: =IF(F58<1.01,1,IF(F58<1.26,2,IF(F58<1.51,3,IF(F58<2.01,4,5)))) -> 1
A59: =+'Steps 10 - 11 Pop Conseq'!A27 -> Facility z | B59: =+'Steps 10 - 11 Pop Conseq'!B27 -> Explosion (Ethylene Oxide) | C59: =+F$2 -> 4 | D59: =VLOOKUP($A$18,$A$17:$G$20,8-$D$27,FALSE) -> 45 | E59: 15 | F59: 0.3333333333 | G59: 1
A60: =+'Steps 10 - 11 Pop Conseq'!A28 -> Facility z | B60: =+'Steps 10 - 11 Pop Conseq'!B28 -> Toxic Gas (Chlorine) (L) | C60: =+F$2 -> 4 | D60: 45 | E60: 15 | F60: 0.3333333333 | G60: 1
A61: =+'Steps 10 - 11 Pop Conseq'!A29 -> Facility z | B61: =+'Steps 10 - 11 Pop Conseq'!B29 -> Toxic Gas (Chlorine) (S) | C61: =+F$2 -> 4 | D61: 45 | E61: 15 | F61: 0.3333333333 | G61: 1
A62: =+'Steps 10 - 11 Pop Conseq'!A30 -> step 10-11 facility | B62: =+'Steps 10 - 11 Pop Conseq'!B30 -> step 10 - 11 hazard | C62: =+F$2 -> 4 | D62: 45 | E62: step 17 value | F62: =+E62/D62 ->  | G62: =IF(F62<1.01,1,IF(F62<1.26,2,IF(F62<1.51,3,IF(F62<2.01,4,5)))) -> 
A63: =+'Steps 10 - 11 Pop Conseq'!A31 -> Roads x | B63: =+'Steps 10 - 11 Pop Conseq'!B31 -> Fire (Gasoline) | C63: =+F$2 -> 4 | D63: =VLOOKUP($A$18,$A$17:$G$20,8-$D$27,FALSE) -> 45 | E63: 30 | F63: =+E63/D63 -> 0.6666666667 | G63: =IF(F63<1.01,1,IF(F63<1.26,2,IF(F63<1.51,3,IF(F63<2.01,4,5)))) -> 1
A64: =+'Steps 10 - 11 Pop Conseq'!A32 -> Roads x | B64: =+'Steps 10 - 11 Pop Conseq'!B32 -> Toxic Gas (Ammonia) (L) | C64: 4 | D64: 45 | E64: 30 | F64: 0.6666666667 | G64: 1
A65: =+'Steps 10 - 11 Pop Conseq'!A33 -> Roads x | B65: =+'Steps 10 - 11 Pop Conseq'!B33 -> Toxic Gas (Ammonia) (S) | C65: 4 | D65: 45 | E65: 30 | F65: 0.6666666667 | G65: 1
A66: =+'Steps 10 - 11 Pop Conseq'!A34 -> Roads x | B66: =+'Steps 10 - 11 Pop Conseq'!B34 -> Toxic Liquid (37% HCl) (L) | C66: 4 | D66: 45 | E66: 30 | F66: 0.6666666667 | G66: 1
A67: =+'Steps 10 - 11 Pop Conseq'!A35 -> Roads x | B67: =+'Steps 10 - 11 Pop Conseq'!B35 -> Toxic Liquid (37% HCl) (S) | C67: 4 | D67: 45 | E67: 30 | F67: 0.6666666667 | G67: 1
A68: =+'Steps 10 - 11 Pop Conseq'!A36 -> Roads y | B68: =+'Steps 10 - 11 Pop Conseq'!B36 -> Fire (Gasoline) | C68: 4 | D68: 45 | E68: 15 | F68: 0.3333333333 | G68: 1
A69: =+'Steps 10 - 11 Pop Conseq'!A37 -> Roads u | B69: =+'Steps 10 - 11 Pop Conseq'!B37 -> Fire (Gasoline) | C69: 4 | D69: 45 | E69: 20 | F69: 0.4444444444 | G69: 1
A70: =+'Steps 10 - 11 Pop Conseq'!A38 -> Roads u | B70: =+'Steps 10 - 11 Pop Conseq'!B38 -> Toxic Liquid (37% HCl) (L) | C70: 4 | D70: 45 | E70: 20 | F70: 0.4444444444 | G70: 1
A71: =+'Steps 10 - 11 Pop Conseq'!A39 -> Roads u | B71: =+'Steps 10 - 11 Pop Conseq'!B39 -> Toxic Liquid (37% HCl) (S) | C71: 4 | D71: 45 | E71: 20 | F71: 0.4444444444 | G71: 1
A72: =+'Steps 10 - 11 Pop Conseq'!A40 -> Road w | B72: =+'Steps 10 - 11 Pop Conseq'!B40 -> Fire (Gasoline) | C72: 4 | D72: 45 | E72: 20 | F72: 0.4444444444 | G72: 1
A73: =+'Steps 10 - 11 Pop Conseq'!A41 -> Road w | B73: =+'Steps 10 - 11 Pop Conseq'!B41 -> Toxic Gas (Ammonia) (L) | C73: 4 | D73: 45 | E73: 15 | F73: 0.3333333333 | G73: =IF(F73<1.01,1,IF(F73<1.26,2,IF(F73<1.51,3,IF(F73<2.01,4,5)))) -> 1
A74: =+'Steps 10 - 11 Pop Conseq'!A42 -> Road w | B74: =+'Steps 10 - 11 Pop Conseq'!B42 -> Toxic Gas (Ammonia) (S) | C74: 4 | D74: 45 | E74: 15 | F74: 0.3333333333 | G74: 1
A75: =+'Steps 10 - 11 Pop Conseq'!A43 -> Railroad s | B75: =+'Steps 10 - 11 Pop Conseq'!B43 -> BLEVE (Ethylene Oxide) | C75: 4 | D75: 45 | E75: 15 | F75: =+E75/D75 -> 0.3333333333 | G75: 1
A76: =+'Steps 10 - 11 Pop Conseq'!A44 -> Railroad s | B76: =+'Steps 10 - 11 Pop Conseq'!B44 -> Toxic Gas (Chlorine) (L) | C76: 4 | D76: 45 | E76: 15 | F76: 0.3333333333 | G76: 1
A77: =+'Steps 10 - 11 Pop Conseq'!A45 -> Railroad s | B77: =+'Steps 10 - 11 Pop Conseq'!B45 -> Toxic Gas (Chlorine) (S) | C77: 4 | D77: 45 | E77: 15 | F77: 0.3333333333 | G77: 1
A78: =+'Steps 10 - 11 Pop Conseq'!A46 -> step 10-12 route | B78: =+'Steps 10 - 11 Pop Conseq'!B46 -> step 10 - 11 hazard | C78: =+F$2 -> 4 | D78: 45 | E78: step 17 value | F78: =+E78/D78 ->  | G78: =IF(F78<1.01,1,IF(F78<1.26,2,IF(F78<1.51,3,IF(F78<2.01,4,5)))) -> 
A80: Rescue Time Performance
A81: Facility or Route | B81: Hazard | C81: Selected Jurisdiction Level | D81: Rescue Team Response Time Goal based on Tier Level | E81: =CONCATENATE("Average Response Time for Rescue Team Capable of Rescuing ",VLOOKUP(A22,A22:G25,8-D27,FALSE), " People/hr to Arrive at Scene") -> Average Response Time for Rescue Team Capable of Rescuing 10 People/hr to Arrive at Scene | F81: Percentage of Response Time Goal | G81: Control Team [RTF]
E82: min | F82: min | G82: %
A83: =+'Steps 10 - 11 Pop Conseq'!A26 -> Facility z | B83: =+'Steps 10 - 11 Pop Conseq'!B26 -> Fire (Ethylene Oxide) | C83: =+F$2 -> 4 | D83: =VLOOKUP($A$19,$A$17:$G$20,8-$D$27,FALSE) -> 10 | E83: 15 | F83: =+E83/D83 -> 1.5 | G83: =IF(F83<1.01,1,IF(F83<1.26,2,IF(F83<1.51,3,IF(F83<2.01,4,5)))) -> 3
A84: =+'Steps 10 - 11 Pop Conseq'!A27 -> Facility z | B84: =+'Steps 10 - 11 Pop Conseq'!B27 -> Explosion (Ethylene Oxide) | C84: =+F$2 -> 4 | D84: =VLOOKUP($A$19,$A$17:$G$20,8-$D$27,FALSE) -> 10 | E84: 15 | F84: 1.5 | G84: 3
A85: =+'Steps 10 - 11 Pop Conseq'!A28 -> Facility z | B85: =+'Steps 10 - 11 Pop Conseq'!B28 -> Toxic Gas (Chlorine) (L) | C85: =+F$2 -> 4 | D85: 10 | E85: 15 | F85: 1.5 | G85: 3
A86: =+'Steps 10 - 11 Pop Conseq'!A29 -> Facility z | B86: =+'Steps 10 - 11 Pop Conseq'!B29 -> Toxic Gas (Chlorine) (S) | C86: =+F$2 -> 4 | D86: 10 | E86: 15 | F86: 1.5 | G86: 3
A87: =+'Steps 10 - 11 Pop Conseq'!A30 -> step 10-11 facility | B87: =+'Steps 10 - 11 Pop Conseq'!B30 -> step 10 - 11 hazard | C87: =+F$2 -> 4 | D87: 10 | E87: 15 | F87: =+E87/D87 -> 1.5 | G87: =IF(F87<1.01,1,IF(F87<1.26,2,IF(F87<1.51,3,IF(F87<2.01,4,5)))) -> 3
A88: =+'Steps 10 - 11 Pop Conseq'!A31 -> Roads x | B88: =+'Steps 10 - 11 Pop Conseq'!B31 -> Fire (Gasoline) | C88: =+F$2 -> 4 | D88: =VLOOKUP($A$19,$A$17:$G$20,8-$D$27,FALSE) -> 10 | E88: 45 | F88: =+E88/D88 -> 4.5 | G88: =IF(F88<1.01,1,IF(F88<1.26,2,IF(F88<1.51,3,IF(F88<2.01,4,5)))) -> 5
A89: =+'Steps 10 - 11 Pop Conseq'!A32 -> Roads x | B89: =+'Steps 10 - 11 Pop Conseq'!B32 -> Toxic Gas (Ammonia) (L) | C89: 4 | D89: 10 | E89: 45 | F89: 4.5 | G89: 5
A90: =+'Steps 10 - 11 Pop Conseq'!A33 -> Roads x | B90: =+'Steps 10 - 11 Pop Conseq'!B33 -> Toxic Gas (Ammonia) (S) | C90: 4 | D90: 10 | E90: 45 | F90: 4.5 | G90: 5
A91: =+'Steps 10 - 11 Pop Conseq'!A34 -> Roads x | B91: =+'Steps 10 - 11 Pop Conseq'!B34 -> Toxic Liquid (37% HCl) (L) | C91: 4 | D91: 10 | E91: 45 | F91: 4.5 | G91: 5
A92: =+'Steps 10 - 11 Pop Conseq'!A35 -> Roads x | B92: =+'Steps 10 - 11 Pop Conseq'!B35 -> Toxic Liquid (37% HCl) (S) | C92: 4 | D92: 10 | E92: 45 | F92: 4.5 | G92: 5
A93: =+'Steps 10 - 11 Pop Conseq'!A36 -> Roads y | B93: =+'Steps 10 - 11 Pop Conseq'!B36 -> Fire (Gasoline) | C93: 4 | D93: 10 | E93: 30 | F93: 3 | G93: 5
A94: =+'Steps 10 - 11 Pop Conseq'!A37 -> Roads u | B94: =+'Steps 10 - 11 Pop Conseq'!B37 -> Fire (Gasoline) | C94: 4 | D94: 10 | E94: 30 | F94: 3 | G94: 5
A95: =+'Steps 10 - 11 Pop Conseq'!A38 -> Roads u | B95: =+'Steps 10 - 11 Pop Conseq'!B38 -> Toxic Liquid (37% HCl) (L) | C95: 4 | D95: 10 | E95: 30 | F95: 3 | G95: 5
A96: =+'Steps 10 - 11 Pop Conseq'!A39 -> Roads u | B96: =+'Steps 10 - 11 Pop Conseq'!B39 -> Toxic Liquid (37% HCl) (S) | C96: 4 | D96: 10 | E96: 30 | F96: 3 | G96: 5
A97: =+'Steps 10 - 11 Pop Conseq'!A40 -> Road w | B97: =+'Steps 10 - 11 Pop Conseq'!B40 -> Fire (Gasoline) | C97: 4 | D97: 10 | E97: 45 | F97: 4.5 | G97: 5
A98: =+'Steps 10 - 11 Pop Conseq'!A41 -> Road w | B98: =+'Steps 10 - 11 Pop Conseq'!B41 -> Toxic Gas (Ammonia) (L) | C98: 4 | D98: 10 | E98: 45 | F98: 4.5 | G98: 5
A99: =+'Steps 10 - 11 Pop Conseq'!A42 -> Road w | B99: =+'Steps 10 - 11 Pop Conseq'!B42 -> Toxic Gas (Ammonia) (S) | C99: 4 | D99: 10 | E99: 45 | F99: 4.5 | G99: 5
A100: =+'Steps 10 - 11 Pop Conseq'!A43 -> Railroad s | B100: =+'Steps 10 - 11 Pop Conseq'!B43 -> BLEVE (Ethylene Oxide) | C100: 4 | D100: 10 | E100: 45 | F100: 4.5 | G100: 5
A101: =+'Steps 10 - 11 Pop Conseq'!A44 -> Railroad s | B101: =+'Steps 10 - 11 Pop Conseq'!B44 -> Toxic Gas (Chlorine) (L) | C101: 4 | D101: 10 | E101: 45 | F101: 4.5 | G101: 5
A102: =+'Steps 10 - 11 Pop Conseq'!A45 -> Railroad s | B102: =+'Steps 10 - 11 Pop Conseq'!B45 -> Toxic Gas (Chlorine) (S) | C102: 4 | D102: 10 | E102: 45 | F102: 4.5 | G102: 5
A103: =+'Steps 10 - 11 Pop Conseq'!A46 -> step 10-12 route | B103: =+'Steps 10 - 11 Pop Conseq'!B46 -> step 10 - 11 hazard | C103: =+F$2 -> 4 | D103: 10 | E103: step 17 value | F103: =+E103/D103 ->  | G103: =IF(F103<1.01,1,IF(F103<1.26,2,IF(F103<1.51,3,IF(F103<2.01,4,5)))) -> 
A105: Control Team Time Performance
A106: Facility or Route | B106: Hazard | C106: Selected Jurisdiction Level | D106: Control Team Response Time Goal based on Tier Level | E106: =+CONCATENATE("Average Response Time for Tier Level ", VLOOKUP(A24,A22:G25,8-D27,FALSE)," Control Team having access to ",VLOOKUP(A25,A22:G25,8-D27,FALSE)," Tier 3/4 team to Arrive at Scene") -> Average Response Time for Tier Level 2 Control Team having access to 1 Tier 3/4 team to Arrive at Scene | F106: Percentage of Response Time Goal | G106: Control Team [RTF] | H106: Maximum [RTF]
E107: min | F107: min | G107: %
A108: =+'Steps 10 - 11 Pop Conseq'!A26 -> Facility z | B108: =+'Steps 10 - 11 Pop Conseq'!B26 -> Fire (Ethylene Oxide) | C108: =+F$2 -> 4 | D108: =VLOOKUP($A$20,$A$17:$G$20,8-$D$27,FALSE) -> 60 | E108: 15 | F108: =+E108/D108 -> 0.25 | G108: =IF(F108<1.01,1,IF(F108<1.26,2,IF(F108<1.51,3,IF(F108<2.01,4,5)))) -> 1 | H108: =MAX(G32,G58,G83,G108) -> 3
A109: =+'Steps 10 - 11 Pop Conseq'!A27 -> Facility z | B109: =+'Steps 10 - 11 Pop Conseq'!B27 -> Explosion (Ethylene Oxide) | C109: =+F$2 -> 4 | D109: =VLOOKUP($A$20,$A$17:$G$20,8-$D$27,FALSE) -> 60 | E109: 15 | F109: 0.25 | G109: 1 | H109: 3
A110: =+'Steps 10 - 11 Pop Conseq'!A28 -> Facility z | B110: =+'Steps 10 - 11 Pop Conseq'!B28 -> Toxic Gas (Chlorine) (L) | C110: =+F$2 -> 4 | D110: 60 | E110: 15 | F110: 0.25 | G110: 1 | H110: 3
A111: =+'Steps 10 - 11 Pop Conseq'!A29 -> Facility z | B111: =+'Steps 10 - 11 Pop Conseq'!B29 -> Toxic Gas (Chlorine) (S) | C111: =+F$2 -> 4 | D111: 60 | E111: 15 | F111: 0.25 | G111: 1 | H111: 3
A112: =+'Steps 10 - 11 Pop Conseq'!A30 -> step 10-11 facility | B112: =+'Steps 10 - 11 Pop Conseq'!B30 -> step 10 - 11 hazard | C112: =+F$2 -> 4 | D112: 60 | E112: step 17 value | F112: =+E112/D112 ->  | G112: =IF(F112<1.01,1,IF(F112<1.26,2,IF(F112<1.51,3,IF(F112<2.01,4,5)))) -> 
A113: =+'Steps 10 - 11 Pop Conseq'!A31 -> Roads x | B113: =+'Steps 10 - 11 Pop Conseq'!B31 -> Fire (Gasoline) | C113: =+F$2 -> 4 | D113: =VLOOKUP($A$20,$A$17:$G$20,8-$D$27,FALSE) -> 60 | E113: 45 | F113: =+E113/D113 -> 0.75 | G113: =IF(F113<1.01,1,IF(F113<1.26,2,IF(F113<1.51,3,IF(F113<2.01,4,5)))) -> 1 | H113: 5
A114: =+'Steps 10 - 11 Pop Conseq'!A32 -> Roads x | B114: =+'Steps 10 - 11 Pop Conseq'!B32 -> Toxic Gas (Ammonia) (L) | C114: 4 | D114: 60 | E114: 45 | F114: 0.75 | G114: 1 | H114: 5
A115: =+'Steps 10 - 11 Pop Conseq'!A33 -> Roads x | B115: =+'Steps 10 - 11 Pop Conseq'!B33 -> Toxic Gas (Ammonia) (S) | C115: 4 | D115: 60 | E115: 45 | F115: 0.75 | G115: 1 | H115: 5
A116: =+'Steps 10 - 11 Pop Conseq'!A34 -> Roads x | B116: =+'Steps 10 - 11 Pop Conseq'!B34 -> Toxic Liquid (37% HCl) (L) | C116: 4 | D116: 60 | E116: 45 | F116: 0.75 | G116: 1 | H116: 5
A117: =+'Steps 10 - 11 Pop Conseq'!A35 -> Roads x | B117: =+'Steps 10 - 11 Pop Conseq'!B35 -> Toxic Liquid (37% HCl) (S) | C117: 4 | D117: 60 | E117: 45 | F117: 0.75 | G117: 1 | H117: 5
A118: =+'Steps 10 - 11 Pop Conseq'!A36 -> Roads y | B118: =+'Steps 10 - 11 Pop Conseq'!B36 -> Fire (Gasoline) | C118: 4 | D118: 60 | E118: 30 | F118: 0.5 | G118: 1 | H118: 5
A119: =+'Steps 10 - 11 Pop Conseq'!A37 -> Roads u | B119: =+'Steps 10 - 11 Pop Conseq'!B37 -> Fire (Gasoline) | C119: 4 | D119: 60 | E119: 30 | F119: 0.5 | G119: 1 | H119: 5
A120: =+'Steps 10 - 11 Pop Conseq'!A38 -> Roads u | B120: =+'Steps 10 - 11 Pop Conseq'!B38 -> Toxic Liquid (37% HCl) (L) | C120: 4 | D120: 60 | E120: 30 | F120: 0.5 | G120: 1 | H120: 5
A121: =+'Steps 10 - 11 Pop Conseq'!A39 -> Roads u | B121: =+'Steps 10 - 11 Pop Conseq'!B39 -> Toxic Liquid (37% HCl) (S) | C121: 4 | D121: 60 | E121: 30 | F121: 0.5 | G121: 1 | H121: 5
A122: =+'Steps 10 - 11 Pop Conseq'!A40 -> Road w | B122: =+'Steps 10 - 11 Pop Conseq'!B40 -> Fire (Gasoline) | C122: 4 | D122: 60 | E122: 45 | F122: 0.75 | G122: 1 | H122: 5
A123: =+'Steps 10 - 11 Pop Conseq'!A41 -> Road w | B123: =+'Steps 10 - 11 Pop Conseq'!B41 -> Toxic Gas (Ammonia) (L) | C123: 4 | D123: 60 | E123: 45 | F123: 0.75 | G123: 1 | H123: 5
A124: =+'Steps 10 - 11 Pop Conseq'!A42 -> Road w | B124: =+'Steps 10 - 11 Pop Conseq'!B42 -> Toxic Gas (Ammonia) (S) | C124: 4 | D124: 60 | E124: 45 | F124: 0.75 | G124: 1 | H124: 5
A125: =+'Steps 10 - 11 Pop Conseq'!A43 -> Railroad s | B125: =+'Steps 10 - 11 Pop Conseq'!B43 -> BLEVE (Ethylene Oxide) | C125: 4 | D125: 60 | E125: 45 | F125: 0.75 | G125: 1 | H125: 5
A126: =+'Steps 10 - 11 Pop Conseq'!A44 -> Railroad s | B126: =+'Steps 10 - 11 Pop Conseq'!B44 -> Toxic Gas (Chlorine) (L) | C126: 4 | D126: 60 | E126: 45 | F126: 0.75 | G126: 1 | H126: 5
A127: =+'Steps 10 - 11 Pop Conseq'!A45 -> Railroad s | B127: =+'Steps 10 - 11 Pop Conseq'!B45 -> Toxic Gas (Chlorine) (S) | C127: 4 | D127: 60 | E127: 45 | F127: 0.75 | G127: 1 | H127: 5
A128: =+'Steps 10 - 11 Pop Conseq'!A46 -> step 10-12 route | B128: =+'Steps 10 - 11 Pop Conseq'!B46 -> step 10 - 11 hazard | C128: 4 | D128: 60 | E128: step 17 value | F128: =+E128/D128 ->  | G128: =IF(F128<1.01,1,IF(F128<1.26,2,IF(F128<1.51,3,IF(F128<2.01,4,5)))) -> 

Sheet Step 19 Vulnerability
B2: The details of the Vulnerability Calculation are shown in Appendix B of the Guide. The facility vulnerability calculation differs from the transportation vulnerability calculation because whereas a facility is a known entity, hazmat vehicles can be traveling through the region and unless some type of survey is done, the assessor will have no knowledge of most hazmat shipments until a transportation accident occurs.
B7: The type, likelihood and magnitude of a release from a facility can probably be obtained through discussions with the facility's safety manger. Similar discussions could be held with pipeline personnel if there is a product or gas pipeline traversing the region.
B10: The vulnerability to a transportation accident depends on the total number of miles driven in the region for each type of hazardous material. For rail, the assessor can ascertain the types of hazmat traveling through the area by asking railroad officials responsible for the trains traversing the area. For highway, there is no substitute for local knowledge obtained by monitoring hazardous material flows. If such information has not been collected, one can always defer to the to the Hazardous Material Commodity Flow Survey Reports published by the Census Bureau. For example if there is a major interstate running through the region, in the absence of all other knowledge, if the assessor knows the number of Class 3 hazmat trucks per day on a specific highway, for planning purposes one can estimate the number of class 8 vehicles passing on that highway by using the ratio of Class 3 to Class 8 from the Census report and applying the ratio to the known Class 3 shipments on that highway. Clearly there is no substitute for good knowledge about hazmat flows in the region.
B19: As was the case with the previous tabs, the areas colored in light blue must be filled out by the assessor or assessment team.
B22: Vulnerability Calculation
B23: See Discussion of Table 20 Vulnerability Levels in the Guide for additional details
B24: Vulnerability Level | C24: Numerical Value | D24: Approximate Likelihood Range/Year
B25: Very High | C25: 5 | D25: >1 per year
B26: High | C26: 4 | D26: 1 to 10-2
B27: Moderate | C27: 3 | D27: 10-2 to 10-4
B28: Low | C28: 2 | D28: 10-4 to 10-6
B29: Very Low | C29: 1 | D29: <10-6
B31: The Vulnerability Calculation Discussion can be found in Appendix B of the Guide
B32: Cells shaded in blue must be calculated and filled in, | E32: others calculated or passed from another worksheet
B33: Facility Vulnerability Calculation
B34: Facility or Route | C34: Hazard | D34: Y/N | E34: Accident Release Probability | F34: Vulnerability
D35: [H] | E35: 1/year | F35: [V]
B36: =+'Steps 10 - 11 Pop Conseq'!A26 -> Facility z | C36: Fire (Ethylene Oxide) | D36: 1 | E36: 0.1 | F36: =IF(E36>1,5,IF(E36>0.01,4,IF(E36>0.0001,3,IF(E36>0.000001,2,1)))) -> 4
B37: =+'Steps 10 - 11 Pop Conseq'!A27 -> Facility z | C37: Fire (Ethylene Oxide) | D37: 1 | E37: 1e-05 | F37: =IF(E37>1,5,IF(E37>0.01,4,IF(E37>0.0001,3,IF(E37>0.000001,2,1)))) -> 2
B38: =+'Steps 10 - 11 Pop Conseq'!A28 -> Facility z | C38: Fire (Ethylene Oxide) | D38: 1 | E38: 0.001 | F38: 3
B39: =+'Steps 10 - 11 Pop Conseq'!A29 -> Facility z | C39: Fire (Ethylene Oxide) | D39: 1 | E39: 0.1 | F39: =IF(E39>1,5,IF(E39>0.01,4,IF(E39>0.0001,3,IF(E39>0.000001,2,1)))) -> 4
B40: =+'Steps 10 - 11 Pop Conseq'!A30 -> step 10-11 facility | C40: Fire (Ethylene Oxide) | D40: value step 19 | E40: value step 19 | F40: =IF(E40>1,5,IF(E40>0.01,4,IF(E40>0.0001,3,IF(E40>0.000001,2,1)))) -> 5
B42: Route Vulnerability
B43: Facility or Route | C43: Hazard | D43: Y=1/N=0 | E43: Annual Number of Shipments | F43: Total Trip Distance in Region | G43: Accident Rate | H43: Release (L or S) per Accident | I43: Accident Release Probability | J43: Vulner-ability
D44: [H] | E44: # | F44: miles | G44: 1/106 miles | H44: 1/accident | I44: 1/year | J44: [V]
B45: =+'Steps 10 - 11 Pop Conseq'!A31 -> Roads x | C45: =+'Steps 10 - 11 Pop Conseq'!B31 -> Fire (Gasoline) | D45: 1 | E45: 500 | F45: 100 | G45: 1.65 | H45: 0.2 | I45: =+E45*F45*G45*H45/1000000 -> 0.0165 | J45: =IF(I45>1,5,IF(I45>0.01,4,IF(I45>0.0001,3,IF(I45>0.000001,2,1)))) -> 4
B46: =+'Steps 10 - 11 Pop Conseq'!A32 -> Roads x | C46: =+'Steps 10 - 11 Pop Conseq'!B32 -> Toxic Gas (Ammonia) (L) | D46: 1 | E46: 100 | F46: 40 | G46: 1.65 | H46: 0.01 | I46: 6.6e-05 | J46: 2
B47: =+'Steps 10 - 11 Pop Conseq'!A33 -> Roads x | C47: =+'Steps 10 - 11 Pop Conseq'!B33 -> Toxic Gas (Ammonia) (S) | D47: 1 | E47: 100 | F47: 40 | G47: 1.65 | H47: 0.02 | I47: 0.000132 | J47: 3
B48: =+'Steps 10 - 11 Pop Conseq'!A34 -> Roads x | C48: =+'Steps 10 - 11 Pop Conseq'!B34 -> Toxic Liquid (37% HCl) (L) | D48: 1 | E48: 25 | F48: 60 | G48: 1.65 | H48: 0.01 | I48: 2.475e-05 | J48: 2
B49: =+'Steps 10 - 11 Pop Conseq'!A35 -> Roads x | C49: =+'Steps 10 - 11 Pop Conseq'!B35 -> Toxic Liquid (37% HCl) (S) | D49: 1 | E49: 25 | F49: 60 | G49: 1.65 | H49: 0.02 | I49: 4.95e-05 | J49: 2
B50: =+'Steps 10 - 11 Pop Conseq'!A36 -> Roads y | C50: =+'Steps 10 - 11 Pop Conseq'!B36 -> Fire (Gasoline) | D50: 1 | E50: 200 | F50: 50 | G50: 3 | H50: 0.2 | I50: 0.006 | J50: 3
B51: =+'Steps 10 - 11 Pop Conseq'!A37 -> Roads u | C51: =+'Steps 10 - 11 Pop Conseq'!B37 -> Fire (Gasoline) | D51: 1 | E51: 12 | F51: 25 | G51: 1.65 | H51: 0.2 | I51: 9.9e-05 | J51: 2
B52: =+'Steps 10 - 11 Pop Conseq'!A38 -> Roads u | C52: =+'Steps 10 - 11 Pop Conseq'!B38 -> Toxic Liquid (37% HCl) (L) | D52: 1 | E52: 25 | F52: 60 | G52: 1.65 | H52: 0.01 | I52: 2.475e-05 | J52: 2
B53: =+'Steps 10 - 11 Pop Conseq'!A39 -> Roads u | C53: =+'Steps 10 - 11 Pop Conseq'!B39 -> Toxic Liquid (37% HCl) (S) | D53: 1 | E53: 25 | F53: 60 | G53: 1.65 | H53: 0.02 | I53: 4.95e-05 | J53: 2
B54: =+'Steps 10 - 11 Pop Conseq'!A40 -> Road w | C54: =+'Steps 10 - 11 Pop Conseq'!B40 -> Fire (Gasoline) | D54: 1 | E54: 100 | F54: 30 | G54: 1.65 | H54: 0.2 | I54: 0.00099 | J54: 3
B55: =+'Steps 10 - 11 Pop Conseq'!A41 -> Road w | C55: =+'Steps 10 - 11 Pop Conseq'!B41 -> Toxic Gas (Ammonia) (L) | D55: 1 | E55: 80 | F55: 40 | G55: 1.65 | H55: 0.01 | I55: 5.28e-05 | J55: 2
B56: =+'Steps 10 - 11 Pop Conseq'!A42 -> Road w | C56: =+'Steps 10 - 11 Pop Conseq'!B42 -> Toxic Gas (Ammonia) (S) | D56: 1 | E56: 80 | F56: 40 | G56: 1.65 | H56: 0.02 | I56: 0.0001056 | J56: 3
B57: =+'Steps 10 - 11 Pop Conseq'!A43 -> Railroad s | C57: =+'Steps 10 - 11 Pop Conseq'!B43 -> BLEVE (Ethylene Oxide) | D57: 1 | E57: 250 | F57: 100 | G57: 3 | H57: 0.02 | I57: 0.0015 | J57: 3
B58: =+'Steps 10 - 11 Pop Conseq'!A44 -> Railroad s | C58: =+'Steps 10 - 11 Pop Conseq'!B44 -> Toxic Gas (Chlorine) (L) | D58: 1 | E58: 50 | F58: 100 | G58: 3 | H58: 0.01 | I58: 0.00015 | J58: 3
B59: =+'Steps 10 - 11 Pop Conseq'!A45 -> Railroad s | C59: =+'Steps 10 - 11 Pop Conseq'!B45 -> Toxic Gas (Chlorine) (S) | D59: 1 | E59: 50 | F59: 100 | G59: 3 | H59: 0.02 | I59: 0.0003 | J59: 3
B60: =+'Steps 10 - 11 Pop Conseq'!A46 -> step 10-12 route | C60: =+'Steps 10 - 11 Pop Conseq'!B46 -> step 10 - 11 hazard | D60: value step 19 | E60: value step 19 | F60: value step 19 | G60: value step 19 | H60: value step 19 | I60: =+E60*F60*G60*H60/1000000 ->  | J60: =IF(I60>1,5,IF(I60>0.01,4,IF(I60>0.0001,3,IF(I60>0.000001,2,1)))) -> 

Sheet Step 20 Risk
B2: If all the previous tabs have been completed, this result shown here are automatically calculated, no assessor input is required.
B4: As stated in the introduction, there are two ways to use this form, one is to look at the individual columns and see which ones are high. In general, these might be areas for possible improvement. The second use is to look at the high risk scenarios and identify ways to lower the risk levels for thise specific scenarios.
B9: Facility or Route | C9: Hazard | D9: Y/N | E9: Vulner-ability | F9: Consequence (Population / Environment) | G9: Response Time Factor | H9: Emergency Response Capacity | I9: Risk Measure
D10: [H] | E10: [V] | F10: [C] | G10: [RCF] | H10: [ERC]
B11: =+'Steps 10 - 11 Pop Conseq'!A26 -> Facility z | C11: =+'Steps 10 - 11 Pop Conseq'!B26 -> Fire (Ethylene Oxide) | D11: =+'Step 19 Vulnerability'!D45 -> 1 | E11: =+'Step 19 Vulnerability'!F36 -> 4 | F11: =+'Step 14 Max Conseq'!F31 -> 2 | G11: =+'Step 17 RTF'!H108 -> 3 | H11: =+'Step 16 ERC'!G33 -> 1 | I11: =ROUNDUP(+D11*E11*F11*G11*H11,0) -> 24
B12: =+'Steps 10 - 11 Pop Conseq'!A27 -> Facility z | C12: =+'Steps 10 - 11 Pop Conseq'!B27 -> Explosion (Ethylene Oxide) | D12: =+'Step 19 Vulnerability'!D46 -> 1 | E12: =+'Step 19 Vulnerability'!F37 -> 2 | F12: =+'Step 14 Max Conseq'!F32 -> 3 | G12: =+'Step 17 RTF'!H109 -> 3 | H12: =+'Step 16 ERC'!G34 -> 1 | I12: 18
B13: =+'Steps 10 - 11 Pop Conseq'!A28 -> Facility z | C13: =+'Steps 10 - 11 Pop Conseq'!B28 -> Toxic Gas (Chlorine) (L) | D13: =+'Step 19 Vulnerability'!D47 -> 1 | E13: =+'Step 19 Vulnerability'!F38 -> 3 | F13: =+'Step 14 Max Conseq'!F33 -> 5 | G13: =+'Step 17 RTF'!H110 -> 3 | H13: =+'Step 16 ERC'!G35 -> 5 | I13: 225
B14: =+'Steps 10 - 11 Pop Conseq'!A29 -> Facility z | C14: =+'Steps 10 - 11 Pop Conseq'!B29 -> Toxic Gas (Chlorine) (S) | D14: =+'Step 19 Vulnerability'!D48 -> 1 | E14: =+'Step 19 Vulnerability'!F39 -> 4 | F14: =+'Step 14 Max Conseq'!F34 -> 3 | G14: =+'Step 17 RTF'!H111 -> 3 | H14: =+'Step 16 ERC'!G36 -> 1 | I14: 36 | K14: 375
B15: =+'Steps 10 - 11 Pop Conseq'!A30 -> step 10-11 facility | K15: 250
B16: =+'Steps 10 - 11 Pop Conseq'!A31 -> Roads x | C16: =+'Steps 10 - 11 Pop Conseq'!B31 -> Fire (Gasoline) | D16: =+'Step 19 Vulnerability'!D45 -> 1 | E16: =+'Step 19 Vulnerability'!J45 -> 4 | F16: =+'Step 14 Max Conseq'!F36 -> 2 | G16: =+'Step 17 RTF'!H113 -> 5 | H16: =+'Step 16 ERC'!G38 -> 1 | I16: 40 | K16: 225
B17: =+'Steps 10 - 11 Pop Conseq'!A32 -> Roads x | C17: =+'Steps 10 - 11 Pop Conseq'!B32 -> Toxic Gas (Ammonia) (L) | D17: =+'Step 19 Vulnerability'!D46 -> 1 | E17: =+'Step 19 Vulnerability'!J46 -> 2 | F17: =+'Step 14 Max Conseq'!F37 -> 5 | G17: =+'Step 17 RTF'!H114 -> 5 | H17: =+'Step 16 ERC'!G39 -> 5 | I17: 250 | K17: 75
B18: =+'Steps 10 - 11 Pop Conseq'!A33 -> Roads x | C18: =+'Steps 10 - 11 Pop Conseq'!B33 -> Toxic Gas (Ammonia) (S) | D18: =+'Step 19 Vulnerability'!D47 -> 1 | E18: =+'Step 19 Vulnerability'!J47 -> 3 | F18: =+'Step 14 Max Conseq'!F38 -> 3 | G18: =+'Step 17 RTF'!H115 -> 5 | H18: =+'Step 16 ERC'!G40 -> 1 | I18: 45 | K18: 50
B19: =+'Steps 10 - 11 Pop Conseq'!A34 -> Roads x | C19: =+'Steps 10 - 11 Pop Conseq'!B34 -> Toxic Liquid (37% HCl) (L) | D19: =+'Step 19 Vulnerability'!D48 -> 1 | E19: =+'Step 19 Vulnerability'!J48 -> 2 | F19: =+'Step 14 Max Conseq'!F39 -> 3 | G19: =+'Step 17 RTF'!H116 -> 5 | H19: =+'Step 16 ERC'!G41 -> 1 | I19: 30 | K19: 45
B20: =+'Steps 10 - 11 Pop Conseq'!A35 -> Roads x | C20: =+'Steps 10 - 11 Pop Conseq'!B35 -> Toxic Liquid (37% HCl) (S) | D20: =+'Step 19 Vulnerability'!D49 -> 1 | E20: =+'Step 19 Vulnerability'!J49 -> 2 | F20: =+'Step 14 Max Conseq'!F40 -> 3 | G20: =+'Step 17 RTF'!H117 -> 5 | H20: =+'Step 16 ERC'!G42 -> 1 | I20: =ROUNDUP(+D20*E20*F20*G20*H20,0) -> 30 | K20: 40
B21: =+'Steps 10 - 11 Pop Conseq'!A36 -> Roads y | C21: =+'Steps 10 - 11 Pop Conseq'!B36 -> Fire (Gasoline) | D21: =+'Step 19 Vulnerability'!D50 -> 1 | E21: =+'Step 19 Vulnerability'!J50 -> 3 | F21: =+'Step 14 Max Conseq'!F41 -> 2 | G21: =+'Step 17 RTF'!H118 -> 5 | H21: =+'Step 16 ERC'!G43 -> 1 | I21: 30 | K21: 36
B22: =+'Steps 10 - 11 Pop Conseq'!A37 -> Roads u | C22: =+'Steps 10 - 11 Pop Conseq'!B37 -> Fire (Gasoline) | D22: =+'Step 19 Vulnerability'!D51 -> 1 | E22: =+'Step 19 Vulnerability'!J51 -> 2 | F22: =+'Step 14 Max Conseq'!F42 -> 2 | G22: =+'Step 17 RTF'!H119 -> 5 | H22: =+'Step 16 ERC'!G44 -> 1 | I22: 20 | K22: 30
B23: =+'Steps 10 - 11 Pop Conseq'!A38 -> Roads u | C23: =+'Steps 10 - 11 Pop Conseq'!B38 -> Toxic Liquid (37% HCl) (L) | D23: =+'Step 19 Vulnerability'!D52 -> 1 | E23: =+'Step 19 Vulnerability'!J52 -> 2 | F23: =+'Step 14 Max Conseq'!F43 -> 3 | G23: =+'Step 17 RTF'!H120 -> 5 | H23: =+'Step 16 ERC'!G45 -> 1 | I23: 30 | K23: 24
B24: =+'Steps 10 - 11 Pop Conseq'!A39 -> Roads u | C24: =+'Steps 10 - 11 Pop Conseq'!B39 -> Toxic Liquid (37% HCl) (S) | D24: =+'Step 19 Vulnerability'!D53 -> 1 | E24: =+'Step 19 Vulnerability'!J53 -> 2 | F24: =+'Step 14 Max Conseq'!F44 -> 3 | G24: =+'Step 17 RTF'!H121 -> 5 | H24: =+'Step 16 ERC'!G46 -> 1 | I24: 30 | K24: 20
B25: =+'Steps 10 - 11 Pop Conseq'!A40 -> Road w | C25: =+'Steps 10 - 11 Pop Conseq'!B40 -> Fire (Gasoline) | D25: =+'Step 19 Vulnerability'!D54 -> 1 | E25: =+'Step 19 Vulnerability'!J54 -> 3 | F25: =+'Step 14 Max Conseq'!F45 -> 2 | G25: =+'Step 17 RTF'!H122 -> 5 | H25: =+'Step 16 ERC'!G47 -> 1 | I25: 30 | K25: 18
B26: =+'Steps 10 - 11 Pop Conseq'!A41 -> Road w | C26: =+'Steps 10 - 11 Pop Conseq'!B41 -> Toxic Gas (Ammonia) (L) | D26: =+'Step 19 Vulnerability'!D55 -> 1 | E26: =+'Step 19 Vulnerability'!J55 -> 2 | F26: =+'Step 14 Max Conseq'!F46 -> 5 | G26: =+'Step 17 RTF'!H123 -> 5 | H26: =+'Step 16 ERC'!G48 -> 5 | I26: 250 | L26: this graph must be edited by hand
B27: =+'Steps 10 - 11 Pop Conseq'!A42 -> Road w | C27: =+'Steps 10 - 11 Pop Conseq'!B42 -> Toxic Gas (Ammonia) (S) | D27: =+'Step 19 Vulnerability'!D56 -> 1 | E27: =+'Step 19 Vulnerability'!J56 -> 3 | F27: =+'Step 14 Max Conseq'!F47 -> 3 | G27: =+'Step 17 RTF'!H124 -> 5 | H27: =+'Step 16 ERC'!G49 -> 1 | I27: 45 | L27: using the risk measure data
B28: =+'Steps 10 - 11 Pop Conseq'!A43 -> Railroad s | C28: =+'Steps 10 - 11 Pop Conseq'!B43 -> BLEVE (Ethylene Oxide) | D28: =+'Step 19 Vulnerability'!D57 -> 1 | E28: =+'Step 19 Vulnerability'!J57 -> 3 | F28: =+'Step 14 Max Conseq'!F48 -> 3 | G28: =+'Step 17 RTF'!H125 -> 5 | H28: =+'Step 16 ERC'!G50 -> 1 | I28: 45
B29: =+'Steps 10 - 11 Pop Conseq'!A44 -> Railroad s | C29: =+'Steps 10 - 11 Pop Conseq'!B44 -> Toxic Gas (Chlorine) (L) | D29: =+'Step 19 Vulnerability'!D58 -> 1 | E29: =+'Step 19 Vulnerability'!J58 -> 3 | F29: =+'Step 14 Max Conseq'!F49 -> 5 | G29: =+'Step 17 RTF'!H126 -> 5 | H29: =+'Step 16 ERC'!G51 -> 5 | I29: 375
B30: =+'Steps 10 - 11 Pop Conseq'!A45 -> Railroad s | C30: =+'Steps 10 - 11 Pop Conseq'!B45 -> Toxic Gas (Chlorine) (S) | D30: =+'Step 19 Vulnerability'!D59 -> 1 | E30: =+'Step 19 Vulnerability'!J59 -> 3 | F30: =+'Step 14 Max Conseq'!F50 -> 5 | G30: =+'Step 17 RTF'!H127 -> 5 | H30: =+'Step 16 ERC'!G52 -> 5 | I30: 375
